Workbook

Sheet INGRESO DE DATOS
A8: Cotización de Seguro Médico Internacional: para nuevos negocios a partir de enero 1, 2023 y renovaciones de pólizas emitidas en 2022
A10: INGRESE LOS DATOS DEL PROPUESTO ASEGURADO:
C12: Nombre del Asegurado principal : | D12: NOMBRE COMPLETO
F14: Número de adultos en la póliza: | G14: 2 | I14: Número de hijos en la póliza: | J14: 3
F16: Edad del titular: | G16: 74 | I16: Edad de cónyuge: | J16: 74
A19: INGRESE EL NOMBRE DE LA AGENCIA ASESORA:
C21: Nombre de la Agencia: | D21: NOMBRE DE LA AGENCIA/AGENTE
A24: ESCOJA EL PRODUCTO PARA VISUALIZAR LA COTIZACION RESPECTIVA:

Sheet Exclusive
C10: Cotización de Seguro Médico Internacional - Bupa EXCLUSIVE Care
G12: Nombre del asegurado : | H12: =+'INGRESO DE DATOS'!$D$12 -> NOMBRE COMPLETO
G14: Broker / Agente : | H14: =+'INGRESO DE DATOS'!$D$21 -> NOMBRE DE LA AGENCIA/AGENTE
I16: Número de adultos en la póliza: | J16: =+'INGRESO DE DATOS'!$G$14 -> 2 | L16: Edad de Titular : | M16: =+'INGRESO DE DATOS'!$G$16 -> 74
I18: Número hijos (menos 24 de años): | J18: =+'INGRESO DE DATOS'!$J$14 -> 3 | L18: Edad de Cónyuge: | M18: =+'INGRESO DE DATOS'!$J$16 -> 74
I20: Fecha de cotización: | J20: =NOW() -> 2022-12-22T15:39:02.120
I23: FALSE | K23: COMPLICACIONES DE MATERNIDAD
F25: Deducibles | H25: PLAN 1 | I25: PLAN 2 | J25: PLAN 3 | K25: PLAN 4 | L25: PLAN 5 | M25: PLAN 6
F26: Dentro del pais de residencia | H26: n/a | I26: 1000 | J26: 2000 | K26: 5000 | L26: 10000 | M26: 20000
F27: Fuera del pais de residencia | H27: n/a | I27: 2000 | J27: 3000 | K27: 5000 | L27: 10000 | M27: 20000
F29: Tarifas Anuales
F30: Prima de Titular : | H30: n/a | I30: =VLOOKUP($M$16,Tablas!$A$6:$H$29,4,TRUE) -> 75617.31 | J30: =VLOOKUP($M$16,Tablas!$A$6:$H$29,5,TRUE) -> 51944.43 | K30: =VLOOKUP($M$16,Tablas!$A$6:$H$29,6,TRUE) -> 36199.26 | L30: =VLOOKUP($M$16,Tablas!$A$6:$H$29,7,TRUE) -> 31717.72 | M30: =VLOOKUP($M$16,Tablas!$A$6:$H$29,8,TRUE) -> 27539
F31: Prima de Cónyuge | H31: n/a | I31: =IF($J$16=1,0,(VLOOKUP($M$18,Tablas!$A$6:$H$29,4,TRUE))) -> 75617.31 | J31: =IF($J$16=1,0,(VLOOKUP($M$18,Tablas!$A$6:$H$29,5,TRUE))) -> 51944.43 | K31: =IF($J$16=1,0,(VLOOKUP($M$18,Tablas!$A$6:$H$29,6,TRUE))) -> 36199.26 | L31: =IF($J$16=1,0,(VLOOKUP($M$18,Tablas!$A$6:$H$29,7,TRUE))) -> 31717.72 | M31: =IF($J$16=1,0,(VLOOKUP($M$18,Tablas!$A$6:$H$29,8,TRUE))) -> 27539
F32: Primas Hijos : | H32: n/a | I32: =IF($J$18=0,0,(VLOOKUP($J$18,Tablas!$A$30:$H$32,4,TRUE))) -> 6869.31 | J32: =IF($J$18=0,0,(VLOOKUP($J$18,Tablas!$A$30:$H$32,5,TRUE))) -> 5061.21 | K32: =IF($J$18=0,0,(VLOOKUP($J$18,Tablas!$A$30:$H$32,6,TRUE))) -> 3893.54 | L32: =IF($J$18=0,0,(VLOOKUP($J$18,Tablas!$A$30:$H$32,7,TRUE))) -> 3219.3 | M32: =IF($J$18=0,0,(VLOOKUP($J$18,Tablas!$A$30:$H$32,8,TRUE))) -> 2506.84
F33: Prima Rider Complic. Maternidad | H33: n/a | I33: =+IF($I$23=FALSE,0,Tablas!D$33) -> 0 | J33: =+IF($I$23=FALSE,0,Tablas!E$33) -> 0 | K33: =+IF($I$23=FALSE,0,Tablas!F$33) -> 0 | L33: =+IF($I$23=FALSE,0,Tablas!G$33) -> 0 | M33: =+IF($I$23=FALSE,0,Tablas!H$33) -> 0
F34: TOTAL PRIMA NETA : | H34: n/a | I34: =SUM(I30:I33) -> 158103.93 | J34: =SUM(J30:J33) -> 108950.07 | K34: =SUM(K30:K33) -> 76292.06 | L34: =SUM(L30:L33) -> 66654.74 | M34: =SUM(M30:M33) -> 57584.84
F35: Costo Administrativo Anual : | H35: n/a | I35: 75 | J35: 75 | K35: 75 | L35: 75 | M35: 75
F36: GRAN TOTAL : | H36: n/a | I36: =SUM(I34:I35) -> 158178.93 | J36: =SUM(J34:J35) -> 109025.07 | K36: =SUM(K34:K35) -> 76367.06 | L36: =SUM(L34:L35) -> 66729.74 | M36: =SUM(M34:M35) -> 57659.84
F38: Tarifas Semestrales
F39: Prima de Titular : | H39: n/a | I39: =VLOOKUP($M$16,Tablas!$A$39:$H$62,4,TRUE) -> 40077.1743 | J39: =VLOOKUP($M$16,Tablas!$A$39:$H$62,5,TRUE) -> 27530.5479 | K39: =VLOOKUP($M$16,Tablas!$A$39:$H$62,6,TRUE) -> 19185.6078 | L39: =VLOOKUP($M$16,Tablas!$A$39:$H$62,7,TRUE) -> 16810.3916 | M39: =VLOOKUP($M$16,Tablas!$A$39:$H$62,8,TRUE) -> 14595.67
F40: Prima de Cónyuge | H40: n/a | I40: =IF($J$16=1,0,(VLOOKUP($M$18,Tablas!$A$39:$H$62,4,TRUE))) -> 40077.1743 | J40: =IF($J$16=1,0,(VLOOKUP($M$18,Tablas!$A$39:$H$62,5,TRUE))) -> 27530.5479 | K40: =IF($J$16=1,0,(VLOOKUP($M$18,Tablas!$A$39:$H$62,6,TRUE))) -> 19185.6078 | L40: =IF($J$16=1,0,(VLOOKUP($M$18,Tablas!$A$39:$H$62,7,TRUE))) -> 16810.3916 | M40: =IF($J$16=1,0,(VLOOKUP($M$18,Tablas!$A$39:$H$62,8,TRUE))) -> 14595.67
F41: Primas Hijos : | H41: n/a | I41: =IF($J$18=0,0,(VLOOKUP($J$18,Tablas!$A$63:$H$65,4,TRUE))) -> 3640.7343 | J41: =IF($J$18=0,0,(VLOOKUP($J$18,Tablas!$A$63:$H$65,5,TRUE))) -> 2682.4413 | K41: =IF($J$18=0,0,(VLOOKUP($J$18,Tablas!$A$63:$H$65,6,TRUE))) -> 2063.5762 | L41: =IF($J$18=0,0,(VLOOKUP($J$18,Tablas!$A$63:$H$65,7,TRUE))) -> 1706.229 | M41: =IF($J$18=0,0,(VLOOKUP($J$18,Tablas!$A$63:$H$65,8,TRUE))) -> 1328.6252
F42: Prima Rider Complic. Maternidad | H42: n/a | I42: =+IF($I$23=FALSE,0,Tablas!D$66) -> 0 | J42: =+IF($I$23=FALSE,0,Tablas!E$66) -> 0 | K42: =+IF($I$23=FALSE,0,Tablas!F$66) -> 0 | L42: =+IF($I$23=FALSE,0,Tablas!G$66) -> 0 | M42: =+IF($I$23=FALSE,0,Tablas!H$66) -> 0
F43: TOTAL PRIMA NETA : | H43: n/a | I43: =SUM(I39:I42) -> 83795.0829 | J43: =SUM(J39:J42) -> 57743.5371 | K43: =SUM(K39:K42) -> 40434.7918 | L43: =SUM(L39:L42) -> 35327.0122 | M43: =SUM(M39:M42) -> 30519.9652
F44: Costo Administrativo Anual : | H44: n/a | I44: 75 | J44: 75 | K44: 75 | L44: 75 | M44: 75
F45: GRAN TOTAL (1ra Cuota) : | H45: n/a | I45: =SUM(I43:I44) -> 83870.0829 | J45: =SUM(J43:J44) -> 57818.5371 | K45: =SUM(K43:K44) -> 40509.7918 | L45: =SUM(L43:L44) -> 35402.0122 | M45: =SUM(M43:M44) -> 30594.9652
F46: GRAN TOTAL (2da Cuota) : | H46: n/a | I46: =I43 -> 83795.0829 | J46: =J43 -> 57743.5371 | K46: 40434.7918 | L46: 35327.0122 | M46: 30519.9652
F47: Tarifas en US$ — Válidas desde 1ro. de enero de 2023
F49: Este presupuesto solamente tiene carácter informativo y en ningún momento expresa compromiso legal para suministrarle cobertura de seguro. La emisión de una póliza de seguro Bupa está sujeta a todas las evaluaciones de riesgo por parte de Bupa y a la recepción de todos los pagos de prima requeridos.

Sheet Privilege
C10: Cotización de Seguro Médico Internacional - Bupa PRIVILEGE Care
G12: Nombre del asegurado : | H12: =+'INGRESO DE DATOS'!$D$12 -> NOMBRE COMPLETO
G14: Broker / Agente : | H14: =+'INGRESO DE DATOS'!$D$21 -> NOMBRE DE LA AGENCIA/AGENTE
I16: Número de adultos en la póliza: | J16: =+'INGRESO DE DATOS'!$G$14 -> 2 | L16: Edad de Titular : | M16: =+'INGRESO DE DATOS'!$G$16 -> 74
I18: Número hijos (menos 24 de años): | J18: =+'INGRESO DE DATOS'!$J$14 -> 3 | L18: Edad de Cónyuge: | M18: =+'INGRESO DE DATOS'!$J$16 -> 74
I20: Fecha de cotización: | J20: =NOW() -> 2022-12-22T15:39:02.120
I22: FALSE | K22: COMPLICACIONES DE MATERNIDAD
F24: Deducibles | H24: PLAN 1 | I24: PLAN 2 | J24: PLAN 3 | K24: PLAN 4 | L24: PLAN 5 | M24: PLAN 6
F25: Dentro del pais de residencia | H25: n/a | I25: 1000 | J25: 2000 | K25: 5000 | L25: 10000 | M25: 20000
F26: Fuera del pais de residencia | H26: n/a | I26: 2000 | J26: 3000 | K26: 5000 | L26: 10000 | M26: 20000
F28: Tarifas Anuales
F29: Prima de Titular : | H29: n/a | I29: =VLOOKUP($M$16,Tablas!$A$140:$H$163,4,TRUE) -> 64991.17 | J29: =VLOOKUP($M$16,Tablas!$A$140:$H$163,5,TRUE) -> 45425.47 | K29: =VLOOKUP($M$16,Tablas!$A$140:$H$163,6,TRUE) -> 31385.01 | L29: =VLOOKUP($M$16,Tablas!$A$140:$H$163,7,TRUE) -> 27747.74 | M29: =VLOOKUP($M$16,Tablas!$A$140:$H$163,8,TRUE) -> 23784.13
F30: Prima de Cónyuge | H30: n/a | I30: =IF($J$16=1,0,(VLOOKUP($M$18,Tablas!$A$140:$H$163,4,TRUE))) -> 64991.17 | J30: =IF($J$16=1,0,(VLOOKUP($M$18,Tablas!$A$140:$H$163,5,TRUE))) -> 45425.47 | K30: =IF($J$16=1,0,(VLOOKUP($M$18,Tablas!$A$140:$H$163,6,TRUE))) -> 31385.01 | L30: =IF($J$16=1,0,(VLOOKUP($M$18,Tablas!$A$140:$H$163,7,TRUE))) -> 27747.74 | M30: =IF($J$16=1,0,(VLOOKUP($M$18,Tablas!$A$140:$H$163,8,TRUE))) -> 23784.13
F31: Primas Hijos : | H31: n/a | I31: =IF($J$18=0,0,(VLOOKUP($J$18,Tablas!$A$164:$H$166,4,TRUE))) -> 5761.42 | J31: =IF($J$18=0,0,(VLOOKUP($J$18,Tablas!$A$164:$H$166,5,TRUE))) -> 4210.57 | K31: =IF($J$18=0,0,(VLOOKUP($J$18,Tablas!$A$164:$H$166,6,TRUE))) -> 3078.67 | L31: =IF($J$18=0,0,(VLOOKUP($J$18,Tablas!$A$164:$H$166,7,TRUE))) -> 2549.47 | M31: =IF($J$18=0,0,(VLOOKUP($J$18,Tablas!$A$164:$H$166,8,TRUE))) -> 1887.97
F32: Prima Rider Complic. Maternidad | H32: n/a | I32: =+IF($I$22=FALSE,0,Tablas!D$167) -> 0 | J32: =+IF($I$22=FALSE,0,Tablas!E$167) -> 0 | K32: =+IF($I$22=FALSE,0,Tablas!F$167) -> 0 | L32: =+IF($I$22=FALSE,0,Tablas!G$167) -> 0 | M32: =+IF($I$22=FALSE,0,Tablas!H$167) -> 0
F33: TOTAL PRIMA NETA : | H33: n/a | I33: =SUM(I29:I32) -> 135743.76 | J33: =SUM(J29:J32) -> 95061.51 | K33: =SUM(K29:K32) -> 65848.69 | L33: =SUM(L29:L32) -> 58044.95 | M33: =SUM(M29:M32) -> 49456.23
F34: Costo Administrativo Anual : | H34: n/a | I34: 75 | J34: 75 | K34: 75 | L34: 75 | M34: 75
F35: GRAN TOTAL : | H35: n/a | I35: =SUM(I33:I34) -> 135818.76 | J35: =SUM(J33:J34) -> 95136.51 | K35: =SUM(K33:K34) -> 65923.69 | L35: =SUM(L33:L34) -> 58119.95 | M35: =SUM(M33:M34) -> 49531.23
F37: Tarifas Semestrales
F38: Prima de Titular : | H38: n/a | I38: =VLOOKUP($M$16,Tablas!$A$173:$H$196,4,TRUE) -> 34445.3201 | J38: =VLOOKUP($M$16,Tablas!$A$173:$H$196,5,TRUE) -> 24075.4991 | K38: =VLOOKUP($M$16,Tablas!$A$173:$H$196,6,TRUE) -> 16634.0553 | L38: =VLOOKUP($M$16,Tablas!$A$173:$H$196,7,TRUE) -> 14706.3022 | M38: =VLOOKUP($M$16,Tablas!$A$173:$H$196,8,TRUE) -> 12605.5889
F39: Prima de Cónyuge | H39: n/a | I39: =IF($J$16=1,0,(VLOOKUP($M$18,Tablas!$A$173:$H$196,4,TRUE))) -> 34445.3201 | J39: =IF($J$16=1,0,(VLOOKUP($M$18,Tablas!$A$173:$H$196,5,TRUE))) -> 24075.4991 | K39: =IF($J$16=1,0,(VLOOKUP($M$18,Tablas!$A$173:$H$196,6,TRUE))) -> 16634.0553 | L39: =IF($J$16=1,0,(VLOOKUP($M$18,Tablas!$A$173:$H$196,7,TRUE))) -> 14706.3022 | M39: =IF($J$16=1,0,(VLOOKUP($M$18,Tablas!$A$173:$H$196,8,TRUE))) -> 12605.5889
F40: Primas Hijos : | H40: n/a | I40: =IF($J$18=0,0,(VLOOKUP($J$18,Tablas!$A$197:$H$199,4,TRUE))) -> 3053.5526 | J40: =IF($J$18=0,0,(VLOOKUP($J$18,Tablas!$A$197:$H$199,5,TRUE))) -> 2231.6021 | K40: =IF($J$18=0,0,(VLOOKUP($J$18,Tablas!$A$197:$H$199,6,TRUE))) -> 1631.6951 | L40: =IF($J$18=0,0,(VLOOKUP($J$18,Tablas!$A$197:$H$199,7,TRUE))) -> 1351.2191 | M40: =IF($J$18=0,0,(VLOOKUP($J$18,Tablas!$A$197:$H$199,8,TRUE))) -> 1000.6241
F41: Prima Rider Complic. Maternidad | H41: n/a | I41: =+IF($I$22=FALSE,0,Tablas!D$200) -> 0 | J41: =+IF($I$22=FALSE,0,Tablas!E$200) -> 0 | K41: =+IF($I$22=FALSE,0,Tablas!F$200) -> 0 | L41: =+IF($I$22=FALSE,0,Tablas!G$200) -> 0 | M41: =+IF($I$22=FALSE,0,Tablas!H$200) -> 0
F42: TOTAL PRIMA NETA : | H42: n/a | I42: =SUM(I38:I41) -> 71944.1928 | J42: =SUM(J38:J41) -> 50382.6003 | K42: =SUM(K38:K41) -> 34899.8057 | L42: =SUM(L38:L41) -> 30763.8235 | M42: =SUM(M38:M41) -> 26211.8019
F43: Costo Administrativo Anual : | H43: n/a | I43: 75 | J43: 75 | K43: 75 | L43: 75 | M43: 75
F44: GRAN TOTAL (1ra Cuota) : | H44: n/a | I44: =SUM(I42:I43) -> 72019.1928 | J44: =SUM(J42:J43) -> 50457.6003 | K44: =SUM(K42:K43) -> 34974.8057 | L44: =SUM(L42:L43) -> 30838.8235 | M44: =SUM(M42:M43) -> 26286.8019
F45: GRAN TOTAL (2da Cuota) : | H45: n/a | I45: =I42 -> 71944.1928 | J45: =J42 -> 50382.6003 | K45: 34899.8057 | L45: 30763.8235 | M45: 26211.8019
F46: Tarifas en US$ — Válidas desde 1ro. de enero de 2023
F48: Este presupuesto solamente tiene carácter informativo y en ningún momento expresa compromiso legal para suministrarle cobertura de seguro. La emisión de una póliza de seguro Bupa está sujeta a todas las evaluaciones de riesgo por parte de Bupa y a la recepción de todos los pagos de prima requeridos.

Sheet Advantage (Mundial)
C10: Cotización de Seguro Médico Internacional - Bupa ADVANTAGE Care
G12: Nombre del asegurado : | H12: =+'INGRESO DE DATOS'!$D$12 -> NOMBRE COMPLETO
G14: Broker / Agente : | H14: =+'INGRESO DE DATOS'!$D$21 -> NOMBRE DE LA AGENCIA/AGENTE
I16: Número de adultos en la póliza: | J16: =+'INGRESO DE DATOS'!$G$14 -> 2 | L16: Edad de Titular : | M16: =+'INGRESO DE DATOS'!$G$16 -> 74
I18: Número hijos (menos 24 de años): | J18: =+'INGRESO DE DATOS'!$J$14 -> 3 | L18: Edad de Cónyuge: | M18: =+'INGRESO DE DATOS'!$J$16 -> 74
I20: Fecha de cotización: | J20: =NOW() -> 2022-12-22T15:39:02.120
I22: FALSE | K22: COMPLICACIONES DE MATERNIDAD
I24: FALSE | K24: TRASPLANTE DE ORGANOS
F26: Deducibles | H26: PLAN 1 | I26: PLAN 2 | J26: PLAN 3 | K26: PLAN 4 | L26: PLAN 5 | M26: PLAN 6
F27: Dentro del pais de residencia | H27: n/a | I27: 1000 | J27: 2000 | K27: 5000 | L27: 10000 | M27: 20000
F28: Fuera del pais de residencia | H28: n/a | I28: 2000 | J28: 3000 | K28: 5000 | L28: 10000 | M28: 20000
F30: Tarifas Anuales
F31: Prima de Titular : | H31: n/a | I31: =VLOOKUP($M$16,Tablas!$A$274:$H$297,4,TRUE) -> 45102.12 | J31: =VLOOKUP($M$16,Tablas!$A$274:$H$297,5,TRUE) -> 35014.1 | K31: =VLOOKUP($M$16,Tablas!$A$274:$H$297,6,TRUE) -> 24691.29 | L31: =VLOOKUP($M$16,Tablas!$A$274:$H$297,7,TRUE) -> 19101.38 | M31: =VLOOKUP($M$16,Tablas!$A$274:$H$297,8,TRUE) -> 15431.66
F32: Prima de Cónyuge | H32: n/a | I32: =IF($J$16=1,0,(VLOOKUP($M$18,Tablas!$A$274:$H$297,4,TRUE))) -> 45102.12 | J32: =IF($J$16=1,0,(VLOOKUP($M$18,Tablas!$A$274:$H$297,5,TRUE))) -> 35014.1 | K32: =IF($J$16=1,0,(VLOOKUP($M$18,Tablas!$A$274:$H$297,6,TRUE))) -> 24691.29 | L32: =IF($J$16=1,0,(VLOOKUP($M$18,Tablas!$A$274:$H$297,7,TRUE))) -> 19101.38 | M32: =IF($J$16=1,0,(VLOOKUP($M$18,Tablas!$A$274:$H$297,8,TRUE))) -> 15431.66
F33: Primas Hijos : | H33: n/a | I33: =IF($J$18=0,0,(VLOOKUP($J$18,Tablas!$A$298:$H$300,4,TRUE))) -> 5353 | J33: =IF($J$18=0,0,(VLOOKUP($J$18,Tablas!$A$298:$H$300,5,TRUE))) -> 3675.02 | K33: =IF($J$18=0,0,(VLOOKUP($J$18,Tablas!$A$298:$H$300,6,TRUE))) -> 2748.05 | L33: =IF($J$18=0,0,(VLOOKUP($J$18,Tablas!$A$298:$H$300,7,TRUE))) -> 2362.21 | M33: =IF($J$18=0,0,(VLOOKUP($J$18,Tablas!$A$298:$H$300,8,TRUE))) -> 1657.84
F34: Prima Rider Complic. Maternidad | H34: n/a | I34: =+IF($I$22=FALSE,0,Tablas!D$301) -> 0 | J34: =+IF($I$22=FALSE,0,Tablas!E$301) -> 0 | K34: =+IF($I$22=FALSE,0,Tablas!F$301) -> 0 | L34: =+IF($I$22=FALSE,0,Tablas!G$301) -> 0 | M34: =+IF($I$22=FALSE,0,Tablas!H$301) -> 0
F35: Prima Rider Trasplante Organos | H35: n/a | I35: =IF($I$24=FALSE,0,Tablas!D$302) -> 0 | J35: =IF($I$24=FALSE,0,Tablas!E$302) -> 0 | K35: =IF($I$24=FALSE,0,Tablas!F$302) -> 0 | L35: =IF($I$24=FALSE,0,Tablas!G$302) -> 0 | M35: =IF($I$24=FALSE,0,Tablas!H$302) -> 0
F36: TOTAL PRIMA NETA : | H36: n/a | I36: =SUM(I31:I35) -> 95557.24 | J36: 73703.22 | K36: 52130.63 | L36: 40564.97 | M36: 32521.16
F37: Costo Administrativo Anual : | H37: n/a | I37: 75 | J37: 75 | K37: 75 | L37: 75 | M37: 75
F38: GRAN TOTAL : | H38: n/a | I38: =SUM(I36:I37) -> 95632.24 | J38: =SUM(J36:J37) -> 73778.22 | K38: =SUM(K36:K37) -> 52205.63 | L38: =SUM(L36:L37) -> 40639.97 | M38: =SUM(M36:M37) -> 32596.16
F40: Tarifas Semestrales
F41: Prima de Titular : | H41: n/a | I41: =VLOOKUP($M$16,Tablas!$A$307:$H$330,4,TRUE) -> 23904.1236 | J41: =VLOOKUP($M$16,Tablas!$A$307:$H$330,5,TRUE) -> 18557.473 | K41: =VLOOKUP($M$16,Tablas!$A$307:$H$330,6,TRUE) -> 13086.3837 | L41: =VLOOKUP($M$16,Tablas!$A$307:$H$330,7,TRUE) -> 10123.7314 | M41: =VLOOKUP($M$16,Tablas!$A$307:$H$330,8,TRUE) -> 8178.7798
F42: Prima de Cónyuge | H42: n/a | I42: =IF($J$16=1,0,(VLOOKUP($M$18,Tablas!$A$307:$H$330,4,TRUE))) -> 23904.1236 | J42: =IF($J$16=1,0,(VLOOKUP($M$18,Tablas!$A$307:$H$330,5,TRUE))) -> 18557.473 | K42: =IF($J$16=1,0,(VLOOKUP($M$18,Tablas!$A$307:$H$330,6,TRUE))) -> 13086.3837 | L42: =IF($J$16=1,0,(VLOOKUP($M$18,Tablas!$A$307:$H$330,7,TRUE))) -> 10123.7314 | M42: =IF($J$16=1,0,(VLOOKUP($M$18,Tablas!$A$307:$H$330,8,TRUE))) -> 8178.7798
F43: Primas Hijos : | H43: n/a | I43: =IF($J$18=0,0,(VLOOKUP($J$18,Tablas!$A$331:$H$333,4,TRUE))) -> 2837.09 | J43: =IF($J$18=0,0,(VLOOKUP($J$18,Tablas!$A$331:$H$333,5,TRUE))) -> 1947.7606 | K43: =IF($J$18=0,0,(VLOOKUP($J$18,Tablas!$A$331:$H$333,6,TRUE))) -> 1456.4665 | L43: =IF($J$18=0,0,(VLOOKUP($J$18,Tablas!$A$331:$H$333,7,TRUE))) -> 1251.9713 | M43: =IF($J$18=0,0,(VLOOKUP($J$18,Tablas!$A$331:$H$333,8,TRUE))) -> 878.6552
F44: Prima Rider Complic. Maternidad | H44: n/a | I44: =+IF($I$22=FALSE,0,Tablas!D$334) -> 0 | J44: =+IF($I$22=FALSE,0,Tablas!E$334) -> 0 | K44: =+IF($I$22=FALSE,0,Tablas!F$334) -> 0 | L44: =+IF($I$22=FALSE,0,Tablas!G$334) -> 0 | M44: =+IF($I$22=FALSE,0,Tablas!H$334) -> 0
F45: Prima Rider Trasplante Organos | H45: n/a | I45: =IF($I$24=FALSE,0,Tablas!D$335) -> 0 | J45: =IF($I$24=FALSE,0,Tablas!E$335) -> 0 | K45: =IF($I$24=FALSE,0,Tablas!F$335) -> 0 | L45: =IF($I$24=FALSE,0,Tablas!G$335) -> 0 | M45: =IF($I$24=FALSE,0,Tablas!H$335) -> 0
F46: TOTAL PRIMA NETA : | H46: n/a | I46: =SUM(I41:I45) -> 50645.3372 | J46: 39062.7066 | K46: 27629.2339 | L46: 21499.4341 | M46: 17236.2148
F47: Costo Administrativo Anual : | H47: n/a | I47: 75 | J47: 75 | K47: 75 | L47: 75 | M47: 75
F48: GRAN TOTAL (1ra Cuota) : | H48: n/a | I48: =SUM(I46:I47) -> 50720.3372 | J48: =SUM(J46:J47) -> 39137.7066 | K48: =SUM(K46:K47) -> 27704.2339 | L48: =SUM(L46:L47) -> 21574.4341 | M48: =SUM(M46:M47) -> 17311.2148
F49: GRAN TOTAL (2da Cuota) : | H49: n/a | I49: =I46 -> 50645.3372 | J49: =J46 -> 39062.7066 | K49: 27629.2339 | L49: 21499.4341 | M49: 17236.2148
F50: Tarifas en US$ — Válidas desde 1ro. de enero de 2023
F52: Este presupuesto solamente tiene carácter informativo y en ningún momento expresa compromiso legal para suministrarle cobertura de seguro. La emisión de una póliza de seguro Bupa está sujeta a todas las evaluaciones de riesgo por parte de Bupa y a la recepción de todos los pagos de prima requeridos.

Sheet Advantage (LA) (hidden)
A10: Cotización de Seguro Médico Internacional - Bupa ADVANTAGE Care (cobertura solo Latinoamérica)
A12: Bupa Advantage Care (cobertura solo en Latinoamérica) | H12: =+'INGRESO DE DATOS'!$D$12 -> NOMBRE COMPLETO
A13: Cobertura Máxima anual | C13: US $ 3,500,000
A14: Cobertura Geografica | C14: Limitada a Latinoamérica excluyendo México | H14: =+'INGRESO DE DATOS'!$D$21 -> NOMBRE DE LA AGENCIA/AGENTE
A15: Condiciones médicas cubiertas | C15: Todas las condiciones médicas
A16: Redes de proveedores | C16: Red de Proveedores "Bupa Advantage" | J16: =+'INGRESO DE DATOS'!$G$14 -> 2 | M16: =+'INGRESO DE DATOS'!$G$16 -> 74
A17: Opciones fuera de la Red | C17: NO, solo en casos de emergencia | F17: FECHA DE COTIZACION :
A18: Requiere preautorización | C18: SI, 30% de penalización por omitir prenotificación | F18: =NOW() -> 2022-12-22T15:39:02.120 | J18: =+'INGRESO DE DATOS'!$J$14 -> 3 | M18: =+'INGRESO DE DATOS'!$J$16 -> 74
A20: Número máximo de días de hospitalización | C20: Ilimitado | I20: TRUE | K20: COMPLICACIONES DE MATERNIDAD
A21: Habitación y alimentación | C21: 100% dentro de Red Bupa
C22: "UCR" para L.A. en emergencias fuera de Red Bupa | I22: TRUE | K22: TRASPLANTE DE ORGANOS
A23: Cuidados Intensivos | C23: 100% dentro de Red Bupa
C24: "UCR" para L.A. en emergencias fuera de Red Bupa
A25: Cobertura de Maternidad | C25: $5,000 (Excepto planes 4,5, y 6) | F25: Deducibles | H25: PLAN 1 | I25: PLAN 2 | J25: PLAN 3 | K25: PLAN 4 | L25: PLAN 5 | M25: PLAN 6
A26: Cobertura Provisional de Recién Nacido | C26: $30,000 por los primeros 90 días | F26: Dentro del pais de residencia | H26: n/a | I26: 1000 | J26: 2000 | K26: 5000 | L26: 10000 | M26: 20000
A27: Cuidado del Recién Nacido saludable | C27: Ya incluída dentro del beneficio de Maternidad | F27: Fuera del pais de residencia | H27: n/a | I27: 2000 | J27: 3000 | K27: 5000 | L27: 10000 | M27: 20000
A28: Cobertura de Complicaciones de Maternidad | C28: Disponible a través de cobertura opcional adicional
A29: Trasplante de Organos | C29: $1,000,000 de por vida, por diagnóstico
A30: Condiciones congénitas y hereditarias | C30: <18 años $300,000 de por vida; >=18 al 100% | F30: Tarifas Anuales
A31: Coberturas opcionales (Riders) | C31: Complicaciones de Maternidad por $500,000 | F31: Prima de Titular : | H31: n/a | I31: =VLOOKUP($M$16,Tablas!$A$341:$H$364,4,TRUE) -> 66124 | J31: =VLOOKUP($M$16,Tablas!$A$341:$H$364,5,TRUE) -> 51319 | K31: =VLOOKUP($M$16,Tablas!$A$341:$H$364,6,TRUE) -> 36208 | L31: =VLOOKUP($M$16,Tablas!$A$341:$H$364,7,TRUE) -> 27987 | M31: =VLOOKUP($M$16,Tablas!$A$341:$H$364,8,TRUE) -> 22614
C32: Trasplante de órganos por $ 300,000 adicionales | F32: Prima de Cónyuge | H32: n/a | I32: =IF($J$16=1,0,(VLOOKUP($M$18,Tablas!$A$341:$H$364,4,TRUE))) -> 66124 | J32: =IF($J$16=1,0,(VLOOKUP($M$18,Tablas!$A$341:$H$364,5,TRUE))) -> 51319 | K32: =IF($J$16=1,0,(VLOOKUP($M$18,Tablas!$A$341:$H$364,6,TRUE))) -> 36208 | L32: =IF($J$16=1,0,(VLOOKUP($M$18,Tablas!$A$341:$H$364,7,TRUE))) -> 27987 | M32: =IF($J$16=1,0,(VLOOKUP($M$18,Tablas!$A$341:$H$364,8,TRUE))) -> 22614
A33: Acompañamiento de menores hospitalizados | C33: $300 por día | F33: Primas Hijos : | H33: n/a | I33: =IF($J$18=0,0,(VLOOKUP($J$18,Tablas!$A$365:$H$367,4,TRUE))) -> 7845 | J33: =IF($J$18=0,0,(VLOOKUP($J$18,Tablas!$A$365:$H$367,5,TRUE))) -> 5394 | K33: =IF($J$18=0,0,(VLOOKUP($J$18,Tablas!$A$365:$H$367,6,TRUE))) -> 4041 | L33: =IF($J$18=0,0,(VLOOKUP($J$18,Tablas!$A$365:$H$367,7,TRUE))) -> 3473 | M33: =IF($J$18=0,0,(VLOOKUP($J$18,Tablas!$A$365:$H$367,8,TRUE))) -> 2440
A34: Ambulancia aérea | C34: $100,000 por año y ticket aéreo de retorno | F34: Prima Rider Complic. Maternidad | H34: n/a | I34: =+IF($I$20=FALSE,0,Tablas!D$368) -> 0 | J34: =+IF($I$20=FALSE,0,Tablas!E$368) -> 0 | K34: =+IF($I$20=FALSE,0,Tablas!F$368) -> 0 | L34: =+IF($I$20=FALSE,0,Tablas!G$368) -> 0 | M34: =+IF($I$20=FALSE,0,Tablas!H$368) -> 0
A35: Repatriación restos mortales | C35: 1 | F35: Prima Rider Trasplante Organos | H35: n/a | I35: =IF($I$22=FALSE,0,Tablas!D$369) -> 0 | J35: =IF($I$22=FALSE,0,Tablas!E$369) -> 0 | K35: =IF($I$22=FALSE,0,Tablas!F$369) -> 0 | L35: =IF($I$22=FALSE,0,Tablas!G$369) -> 0 | M35: =IF($I$22=FALSE,0,Tablas!H$369) -> 0
A36: Medicamentos por receta | C36: $6,000 por Asegurado, por año póliza | F36: TOTAL PRIMA NETA : | H36: n/a | I36: =SUM(I31:I35) -> 140093 | J36: 108032 | K36: 76457 | L36: 59447 | M36: 47668
A37: Almacenamiento de sangre de cordon umbilical | C37: $500 (Excepto planes 4,5, y 6) | F37: Costo Administrativo Anual : | H37: n/a | I37: 75 | J37: 75 | K37: 75 | L37: 75 | M37: 75
F38: GRAN TOTAL : | H38: n/a | I38: =SUM(I36:I37) -> 140168 | J38: =SUM(J36:J37) -> 108107 | K38: =SUM(K36:K37) -> 76532 | L38: =SUM(L36:L37) -> 59522 | M38: =SUM(M36:M37) -> 47743
A39: Atención médica en el hogar | C39: 100% de usual/acostumbrado y razonable
A40: Rehabilitación | C40: 100% de usual/acostumbrado y razonable | F40: Tarifas Semestrales
A41: Residencia y cuidados paliativos | C41: 100% de usual/acostumbrado y razonable | F41: Prima de Titular : | H41: n/a | I41: =VLOOKUP($M$16,Tablas!$A$374:$H$397,4,TRUE) -> 35045.72 | J41: =VLOOKUP($M$16,Tablas!$A$374:$H$397,5,TRUE) -> 27199.07 | K41: =VLOOKUP($M$16,Tablas!$A$374:$H$397,6,TRUE) -> 19190.24 | L41: =VLOOKUP($M$16,Tablas!$A$374:$H$397,7,TRUE) -> 14833.11 | M41: =VLOOKUP($M$16,Tablas!$A$374:$H$397,8,TRUE) -> 11985.42
A42: Cobertura de actividades peligrosas | C42: 1 | F42: Prima de Cónyuge | H42: n/a | I42: =IF($J$16=1,0,(VLOOKUP($M$18,Tablas!$A$374:$H$397,4,TRUE))) -> 35045.72 | J42: =IF($J$16=1,0,(VLOOKUP($M$18,Tablas!$A$374:$H$397,5,TRUE))) -> 27199.07 | K42: =IF($J$16=1,0,(VLOOKUP($M$18,Tablas!$A$374:$H$397,6,TRUE))) -> 19190.24 | L42: =IF($J$16=1,0,(VLOOKUP($M$18,Tablas!$A$374:$H$397,7,TRUE))) -> 14833.11 | M42: =IF($J$16=1,0,(VLOOKUP($M$18,Tablas!$A$374:$H$397,8,TRUE))) -> 11985.42
A43: Chequeos generales de rutina | C43: Hasta US$150 por año póliza.Sin deducible | F43: Primas Hijos : | H43: n/a | I43: =IF($J$18=0,0,(VLOOKUP($J$18,Tablas!$A$398:$H$400,4,TRUE))) -> 4157.85 | J43: =IF($J$18=0,0,(VLOOKUP($J$18,Tablas!$A$398:$H$400,5,TRUE))) -> 2858.82 | K43: =IF($J$18=0,0,(VLOOKUP($J$18,Tablas!$A$398:$H$400,6,TRUE))) -> 2141.73 | L43: =IF($J$18=0,0,(VLOOKUP($J$18,Tablas!$A$398:$H$400,7,TRUE))) -> 1840.69 | M43: =IF($J$18=0,0,(VLOOKUP($J$18,Tablas!$A$398:$H$400,8,TRUE))) -> 1293.2
A44: Cobertura de VIH, SIDA, CAS | C44: Solo como efecto de transfusión de sangre | F44: Prima Rider Complic. Maternidad | H44: n/a | I44: =+IF($I$20=FALSE,0,Tablas!D$401) -> 0 | J44: =+IF($I$20=FALSE,0,Tablas!E$401) -> 0 | K44: =+IF($I$20=FALSE,0,Tablas!F$401) -> 0 | L44: =+IF($I$20=FALSE,0,Tablas!G$401) -> 0 | M44: =+IF($I$20=FALSE,0,Tablas!H$401) -> 0
A45: Cobertura de brazos y piernas artificiales | C45: $30,000 por año y hasta $120,000 de por vida | F45: Prima Rider Trasplante Organos | H45: n/a | I45: =IF($I$22=FALSE,0,Tablas!D$402) -> 0 | J45: =IF($I$22=FALSE,0,Tablas!E$402) -> 0 | K45: =IF($I$22=FALSE,0,Tablas!F$402) -> 0 | L45: =IF($I$22=FALSE,0,Tablas!G$402) -> 0 | M45: =IF($I$22=FALSE,0,Tablas!H$402) -> 0
A46: Cobertura extendida para dependientes en caso de muerte de asegurado principal | C46: 2 años sin costo | F46: TOTAL PRIMA NETA : | H46: n/a | I46: =SUM(I41:I45) -> 74249.29 | J46: 57256.96 | K46: 40522.21 | L46: 31506.91 | M46: 25264.04
F47: Costo Administrativo Anual : | H47: n/a | I47: 75 | J47: 75 | K47: 75 | L47: 75 | M47: 75
F48: GRAN TOTAL (1ra Cuota) : | H48: n/a | I48: =SUM(I46:I47) -> 74324.29 | J48: =SUM(J46:J47) -> 57331.96 | K48: =SUM(K46:K47) -> 40597.21 | L48: =SUM(L46:L47) -> 31581.91 | M48: =SUM(M46:M47) -> 25339.04
F49: GRAN TOTAL (2da Cuota) : | H49: n/a | I49: =I46 -> 74249.29 | J49: =J46 -> 57256.96 | K49: 40522.21 | L49: 31506.91 | M49: 25264.04
F50: Tarifas en US $ - Válidas desde 01 Ene 2013

Sheet Secure
C10: Cotización de Seguro Médico Internacional - Bupa SECURE Care
G12: Nombre del asegurado : | H12: =+'INGRESO DE DATOS'!$D$12 -> NOMBRE COMPLETO
G14: Broker / Agente : | H14: =+'INGRESO DE DATOS'!$D$21 -> NOMBRE DE LA AGENCIA/AGENTE
I16: Número de adultos en la póliza: | J16: =+'INGRESO DE DATOS'!$G$14 -> 2 | L16: Edad de Titular : | M16: =+'INGRESO DE DATOS'!$G$16 -> 74
I18: Número hijos (menos 24 de años): | J18: =+'INGRESO DE DATOS'!$J$14 -> 3 | L18: Edad de Cónyuge: | M18: =+'INGRESO DE DATOS'!$J$16 -> 74
I20: Fecha de cotización: | J20: =NOW() -> 2022-12-22T15:39:02.120
I22: FALSE | K22: COMPLICACIONES DE MATERNIDAD
I24: FALSE | K24: TRASPLANTE DE ORGANOS
F26: Deducibles | H26: PLAN 1 | I26: PLAN 2 | J26: PLAN 3 | K26: PLAN 4 | L26: PLAN 5 | M26: PLAN 6
F27: Dentro del pais de residencia | H27: n/a | I27: 1000 | J27: 2000 | K27: 5000 | L27: 10000 | M27: 20000
F28: Fuera del pais de residencia | H28: n/a | I28: 2000 | J28: 3000 | K28: 5000 | L28: 10000 | M28: 20000
F30: Tarifas Anuales
F31: Prima de Titular : | H31: n/a | I31: =VLOOKUP($M$16,Tablas!$A$408:$H$431,4,TRUE) -> 25471.9 | J31: =VLOOKUP($M$16,Tablas!$A$408:$H$431,5,TRUE) -> 23783.24 | K31: =VLOOKUP($M$16,Tablas!$A$408:$H$431,6,TRUE) -> 15481.62 | L31: =VLOOKUP($M$16,Tablas!$A$408:$H$431,7,TRUE) -> 12667.34 | M31: =VLOOKUP($M$16,Tablas!$A$408:$H$431,8,TRUE) -> 9427.1
F32: Prima de Cónyuge | H32: n/a | I32: =IF($J$16=1,0,(VLOOKUP($M$18,Tablas!$A$408:$H$431,4,TRUE))) -> 25471.9 | J32: =IF($J$16=1,0,(VLOOKUP($M$18,Tablas!$A$408:$H$431,5,TRUE))) -> 23783.24 | K32: =IF($J$16=1,0,(VLOOKUP($M$18,Tablas!$A$408:$H$431,6,TRUE))) -> 15481.62 | L32: =IF($J$16=1,0,(VLOOKUP($M$18,Tablas!$A$408:$H$431,7,TRUE))) -> 12667.34 | M32: =IF($J$16=1,0,(VLOOKUP($M$18,Tablas!$A$408:$H$431,8,TRUE))) -> 9427.1
F33: Primas Hijos : | H33: n/a | I33: =IF($J$18=0,0,(VLOOKUP($J$18,Tablas!$A$432:$H$434,4,TRUE))) -> 4351.14 | J33: =IF($J$18=0,0,(VLOOKUP($J$18,Tablas!$A$432:$H$434,5,TRUE))) -> 2220.42 | K33: =IF($J$18=0,0,(VLOOKUP($J$18,Tablas!$A$432:$H$434,6,TRUE))) -> 1849.66 | L33: =IF($J$18=0,0,(VLOOKUP($J$18,Tablas!$A$432:$H$434,7,TRUE))) -> 1510.18 | M33: =IF($J$18=0,0,(VLOOKUP($J$18,Tablas!$A$432:$H$434,8,TRUE))) -> 1120.1
F34: Prima Rider Complic. Maternidad | H34: n/a | I34: =+IF($I$22=FALSE,0,Tablas!D$435) -> 0 | J34: =+IF($I$22=FALSE,0,Tablas!E$435) -> 0 | K34: =+IF($I$22=FALSE,0,Tablas!F$435) -> 0 | L34: =+IF($I$22=FALSE,0,Tablas!G$435) -> 0 | M34: =+IF($I$22=FALSE,0,Tablas!H$435) -> 0
F35: Prima Rider Trasplante Organos | H35: n/a | I35: =IF($I$24=FALSE,0,Tablas!D$436) -> 0 | J35: =IF($I$24=FALSE,0,Tablas!E$436) -> 0 | K35: =IF($I$24=FALSE,0,Tablas!F$436) -> 0 | L35: =IF($I$24=FALSE,0,Tablas!G$436) -> 0 | M35: =IF($I$24=FALSE,0,Tablas!H$436) -> 0
F36: TOTAL PRIMA NETA : | H36: n/a | I36: =SUM(I31:I35) -> 55294.94 | J36: 49786.9 | K36: 32812.9 | L36: 26844.86 | M36: 19974.3
F37: Costo Administrativo Anual : | H37: n/a | I37: 75 | J37: 75 | K37: 75 | L37: 75 | M37: 75
F38: GRAN TOTAL : | H38: n/a | I38: =SUM(I36:I37) -> 55369.94 | J38: =SUM(J36:J37) -> 49861.9 | K38: =SUM(K36:K37) -> 32887.9 | L38: =SUM(L36:L37) -> 26919.86 | M38: =SUM(M36:M37) -> 20049.3
F40: Tarifas Semestrales
F41: Prima de Titular : | H41: n/a | I41: =VLOOKUP($M$16,Tablas!$A$441:$H$464,4,TRUE) -> 13500.107 | J41: =VLOOKUP($M$16,Tablas!$A$441:$H$464,5,TRUE) -> 12605.1172 | K41: =VLOOKUP($M$16,Tablas!$A$441:$H$464,6,TRUE) -> 8205.2586 | L41: =VLOOKUP($M$16,Tablas!$A$441:$H$464,7,TRUE) -> 6713.6902 | M41: =VLOOKUP($M$16,Tablas!$A$441:$H$464,8,TRUE) -> 4996.363
F42: Prima de Cónyuge | H42: n/a | I42: =IF($J$16=1,0,(VLOOKUP($M$18,Tablas!$A$441:$H$464,4,TRUE))) -> 13500.107 | J42: =IF($J$16=1,0,(VLOOKUP($M$18,Tablas!$A$441:$H$464,5,TRUE))) -> 12605.1172 | K42: =IF($J$16=1,0,(VLOOKUP($M$18,Tablas!$A$441:$H$464,6,TRUE))) -> 8205.2586 | L42: =IF($J$16=1,0,(VLOOKUP($M$18,Tablas!$A$441:$H$464,7,TRUE))) -> 6713.6902 | M42: =IF($J$16=1,0,(VLOOKUP($M$18,Tablas!$A$441:$H$464,8,TRUE))) -> 4996.363
F43: Primas Hijos : | H43: n/a | I43: =IF($J$18=0,0,(VLOOKUP($J$18,Tablas!$A$465:$H$467,4,TRUE))) -> 2306.1042 | J43: =IF($J$18=0,0,(VLOOKUP($J$18,Tablas!$A$465:$H$467,5,TRUE))) -> 1176.8226 | K43: =IF($J$18=0,0,(VLOOKUP($J$18,Tablas!$A$465:$H$467,6,TRUE))) -> 980.3198 | L43: =IF($J$18=0,0,(VLOOKUP($J$18,Tablas!$A$465:$H$467,7,TRUE))) -> 800.3954 | M43: =IF($J$18=0,0,(VLOOKUP($J$18,Tablas!$A$465:$H$467,8,TRUE))) -> 593.653
F44: Prima Rider Complic. Maternidad | H44: n/a | I44: =+IF($I$22=FALSE,0,Tablas!D$468) -> 0 | J44: =+IF($I$22=FALSE,0,Tablas!E$468) -> 0 | K44: =+IF($I$22=FALSE,0,Tablas!F$468) -> 0 | L44: =+IF($I$22=FALSE,0,Tablas!G$468) -> 0 | M44: =+IF($I$22=FALSE,0,Tablas!H$468) -> 0
F45: Prima Rider Trasplante Organos | H45: n/a | I45: =IF($I$24=FALSE,0,Tablas!D$469) -> 0 | J45: =IF($I$24=FALSE,0,Tablas!E$469) -> 0 | K45: =IF($I$24=FALSE,0,Tablas!F$469) -> 0 | L45: =IF($I$24=FALSE,0,Tablas!G$469) -> 0 | M45: =IF($I$24=FALSE,0,Tablas!H$469) -> 0
F46: TOTAL PRIMA NETA : | H46: n/a | I46: =SUM(I41:I45) -> 29306.3182 | J46: 26387.057 | K46: 17390.837 | L46: 14227.7758 | M46: 10586.379
F47: Costo Administrativo Anual : | H47: n/a | I47: 75 | J47: 75 | K47: 75 | L47: 75 | M47: 75
F48: GRAN TOTAL (1ra Cuota) : | H48: n/a | I48: =SUM(I46:I47) -> 29381.3182 | J48: =SUM(J46:J47) -> 26462.057 | K48: =SUM(K46:K47) -> 17465.837 | L48: =SUM(L46:L47) -> 14302.7758 | M48: =SUM(M46:M47) -> 10661.379
F49: GRAN TOTAL (2da Cuota) : | H49: n/a | I49: =I46 -> 29306.3182 | J49: =J46 -> 26387.057 | K49: 17390.837 | L49: 14227.7758 | M49: 10586.379
F50: Tarifas en US$ — Válidas desde 1ro. de enero de 2023
F52: Este presupuesto solamente tiene carácter informativo y en ningún momento expresa compromiso legal para suministrarle cobertura de seguro. La emisión de una póliza de seguro Bupa está sujeta a todas las evaluaciones de riesgo por parte de Bupa y a la recepción de todos los pagos de prima requeridos.

Sheet Essential
C10: Cotización de Seguro Médico Internacional - Bupa ESSENTIAL Care
G12: Nombre del asegurado : | H12: =+'INGRESO DE DATOS'!$D$12 -> NOMBRE COMPLETO
G14: Broker / Agente : | H14: =+'INGRESO DE DATOS'!$D$21 -> NOMBRE DE LA AGENCIA/AGENTE
I16: Número de adultos en la póliza: | J16: =+'INGRESO DE DATOS'!$G$14 -> 2 | L16: Edad de Titular : | M16: =+'INGRESO DE DATOS'!$G$16 -> 74
I18: Número hijos (menos 24 de años): | J18: =+'INGRESO DE DATOS'!$J$14 -> 3 | L18: Edad de Cónyuge: | M18: =+'INGRESO DE DATOS'!$J$16 -> 74
I20: Fecha de cotización: | J20: =NOW() -> 2022-12-22T15:39:02.120
I22: FALSE | K22: COMPLICACIONES DE MATERNIDAD
I24: FALSE | K24: TRASPLANTE DE ORGANOS
F26: Deducibles | H26: PLAN 1 | I26: PLAN 2 | J26: PLAN 3 | K26: PLAN 4 | L26: PLAN 5 | M26: PLAN 6
F27: Dentro del pais de residencia | H27: n/a | I27: 1000 | J27: 2000 | K27: 5000 | L27: 10000 | M27: 20000
F28: Fuera del pais de residencia | H28: n/a | I28: 2000 | J28: 3000 | K28: 5000 | L28: 10000 | M28: 20000
F30: Tarifas Anuales
F31: Prima de Titular : | H31: n/a | I31: =VLOOKUP($M$16,Tablas!$A$475:$H$498,4,TRUE) -> 17905.37 | J31: =VLOOKUP($M$16,Tablas!$A$475:$H$498,5,TRUE) -> 16720.16 | K31: =VLOOKUP($M$16,Tablas!$A$475:$H$498,6,TRUE) -> 10884.59 | L31: =VLOOKUP($M$16,Tablas!$A$475:$H$498,7,TRUE) -> 8906.9 | M31: =VLOOKUP($M$16,Tablas!$A$475:$H$498,8,TRUE) -> 6628.13
F32: Prima de Cónyuge | H32: n/a | I32: =IF($J$16=1,0,(VLOOKUP($M$18,Tablas!$A$475:$H$498,4,TRUE))) -> 17905.37 | J32: =IF($J$16=1,0,(VLOOKUP($M$18,Tablas!$A$475:$H$498,5,TRUE))) -> 16720.16 | K32: =IF($J$16=1,0,(VLOOKUP($M$18,Tablas!$A$475:$H$498,6,TRUE))) -> 10884.59 | L32: =IF($J$16=1,0,(VLOOKUP($M$18,Tablas!$A$475:$H$498,7,TRUE))) -> 8906.9 | M32: =IF($J$16=1,0,(VLOOKUP($M$18,Tablas!$A$475:$H$498,8,TRUE))) -> 6628.13
F33: Primas Hijos : | H33: n/a | I33: =IF($J$18=0,0,(VLOOKUP($J$18,Tablas!$A$499:$H$501,4,TRUE))) -> 3057.99 | J33: =IF($J$18=0,0,(VLOOKUP($J$18,Tablas!$A$499:$H$501,5,TRUE))) -> 1558.83 | K33: =IF($J$18=0,0,(VLOOKUP($J$18,Tablas!$A$499:$H$501,6,TRUE))) -> 1302.6 | L33: =IF($J$18=0,0,(VLOOKUP($J$18,Tablas!$A$499:$H$501,7,TRUE))) -> 1060.8 | M33: =IF($J$18=0,0,(VLOOKUP($J$18,Tablas!$A$499:$H$501,8,TRUE))) -> 784.68
F34: Prima Rider Complic. Maternidad | H34: n/a | I34: =+IF($I$22=FALSE,0,Tablas!D$502) -> 0 | J34: =+IF($I$22=FALSE,0,Tablas!E$502) -> 0 | K34: =+IF($I$22=FALSE,0,Tablas!F$502) -> 0 | L34: =+IF($I$22=FALSE,0,Tablas!G$502) -> 0 | M34: =+IF($I$22=FALSE,0,Tablas!H$502) -> 0
F35: Prima Rider Trasplante Organos | H35: n/a | I35: =IF($I$24=FALSE,0,Tablas!D$503) -> 0 | J35: =IF($I$24=FALSE,0,Tablas!E$503) -> 0 | K35: =IF($I$24=FALSE,0,Tablas!F$503) -> 0 | L35: =IF($I$24=FALSE,0,Tablas!G$503) -> 0 | M35: =IF($I$24=FALSE,0,Tablas!H$503) -> 0
F36: TOTAL PRIMA NETA : | H36: n/a | I36: =SUM(I31:I35) -> 38868.73 | J36: 34999.15 | K36: 23071.78 | L36: 18874.6 | M36: 14040.94
F37: Costo Administrativo Anual : | H37: n/a | I37: 75 | J37: 75 | K37: 75 | L37: 75 | M37: 75
F38: GRAN TOTAL : | H38: n/a | I38: =SUM(I36:I37) -> 38943.73 | J38: =SUM(J36:J37) -> 35074.15 | K38: =SUM(K36:K37) -> 23146.78 | L38: =SUM(L36:L37) -> 18949.6 | M38: =SUM(M36:M37) -> 14115.94
F40: Tarifas Semestrales
F41: Prima de Titular : | H41: n/a | I41: =VLOOKUP($M$16,Tablas!$A$508:$H$531,4,TRUE) -> 9489.8461 | J41: =VLOOKUP($M$16,Tablas!$A$508:$H$531,5,TRUE) -> 8861.6848 | K41: =VLOOKUP($M$16,Tablas!$A$508:$H$531,6,TRUE) -> 5768.8327 | L41: =VLOOKUP($M$16,Tablas!$A$508:$H$531,7,TRUE) -> 4720.657 | M41: =VLOOKUP($M$16,Tablas!$A$508:$H$531,8,TRUE) -> 3512.9089
F42: Prima de Cónyuge | H42: n/a | I42: =IF($J$16=1,0,(VLOOKUP($M$18,Tablas!$A$508:$H$531,4,TRUE))) -> 9489.8461 | J42: =IF($J$16=1,0,(VLOOKUP($M$18,Tablas!$A$508:$H$531,5,TRUE))) -> 8861.6848 | K42: =IF($J$16=1,0,(VLOOKUP($M$18,Tablas!$A$508:$H$531,6,TRUE))) -> 5768.8327 | L42: =IF($J$16=1,0,(VLOOKUP($M$18,Tablas!$A$508:$H$531,7,TRUE))) -> 4720.657 | M42: =IF($J$16=1,0,(VLOOKUP($M$18,Tablas!$A$508:$H$531,8,TRUE))) -> 3512.9089
F43: Primas Hijos : | H43: n/a | I43: =IF($J$18=0,0,(VLOOKUP($J$18,Tablas!$A$532:$H$534,4,TRUE))) -> 1620.7347 | J43: =IF($J$18=0,0,(VLOOKUP($J$18,Tablas!$A$532:$H$534,5,TRUE))) -> 826.1799 | K43: =IF($J$18=0,0,(VLOOKUP($J$18,Tablas!$A$532:$H$534,6,TRUE))) -> 690.378 | L43: =IF($J$18=0,0,(VLOOKUP($J$18,Tablas!$A$532:$H$534,7,TRUE))) -> 562.224 | M43: =IF($J$18=0,0,(VLOOKUP($J$18,Tablas!$A$532:$H$534,8,TRUE))) -> 415.8804
F44: Prima Rider Complic. Maternidad | H44: n/a | I44: =+IF($I$22=FALSE,0,Tablas!D$535) -> 0 | J44: =+IF($I$22=FALSE,0,Tablas!E$535) -> 0 | K44: =+IF($I$22=FALSE,0,Tablas!F$535) -> 0 | L44: =+IF($I$22=FALSE,0,Tablas!G$535) -> 0 | M44: =+IF($I$22=FALSE,0,Tablas!H$535) -> 0
F45: Prima Rider Trasplante Organos | H45: n/a | I45: =IF($I$24=FALSE,0,Tablas!D$536) -> 0 | J45: =IF($I$24=FALSE,0,Tablas!E$536) -> 0 | K45: =IF($I$24=FALSE,0,Tablas!F$536) -> 0 | L45: =IF($I$24=FALSE,0,Tablas!G$536) -> 0 | M45: =IF($I$24=FALSE,0,Tablas!H$536) -> 0
F46: TOTAL PRIMA NETA : | H46: n/a | I46: =SUM(I41:I45) -> 20600.4269 | J46: 18549.5495 | K46: 12228.0434 | L46: 10003.538 | M46: 7441.6982
F47: Costo Administrativo Anual : | H47: n/a | I47: 75 | J47: 75 | K47: 75 | L47: 75 | M47: 75
F48: GRAN TOTAL (1ra Cuota) : | H48: n/a | I48: =SUM(I46:I47) -> 20675.4269 | J48: =SUM(J46:J47) -> 18624.5495 | K48: =SUM(K46:K47) -> 12303.0434 | L48: =SUM(L46:L47) -> 10078.538 | M48: =SUM(M46:M47) -> 7516.6982
F49: GRAN TOTAL (2da Cuota) : | H49: n/a | I49: =I46 -> 20600.4269 | J49: =J46 -> 18549.5495 | K49: 12228.0434 | L49: 10003.538 | M49: 7441.6982
F50: Tarifas en US$ — Válidas desde 1ro. de enero de 2023
F52: Este presupuesto solamente tiene carácter informativo y en ningún momento expresa compromiso legal para suministrarle cobertura de seguro. La emisión de una póliza de seguro Bupa está sujeta a todas las evaluaciones de riesgo por parte de Bupa y a la recepción de todos los pagos de prima requeridos.

Sheet Critical
C10: Cotización de Seguro Médico Internacional - Bupa CRITICAL Care
G12: Nombre del asegurado : | H12: =+'INGRESO DE DATOS'!$D$12 -> NOMBRE COMPLETO
G14: Broker / Agente : | H14: =+'INGRESO DE DATOS'!$D$21 -> NOMBRE DE LA AGENCIA/AGENTE
I16: Número de adultos en la póliza: | J16: =+'INGRESO DE DATOS'!$G$14 -> 2 | L16: Edad de Titular : | M16: =+'INGRESO DE DATOS'!$G$16 -> 74
I18: Número hijos (menos 24 de años): | J18: =+'INGRESO DE DATOS'!$J$14 -> 3 | L18: Edad de Cónyuge: | M18: =+'INGRESO DE DATOS'!$J$16 -> 74
I20: Fecha de cotización: | J20: =NOW() -> 2022-12-22T15:39:02.120 | L20: Edad del adulto mayor en la pareja : | M20: =IF(M16>=M18,M16,M18) -> 74
F22: CONDICION CRITICA CUBIERTA | I22: MAXIMO POR AÑO POLIZA | K22: TRASPLANTE DE ORGANOS
F24: Enfermedades neurológicas y accidentes cerebro-vasculares | I24: 150000 | K24: Tipo de trasplante | M24: Máximo Vitalicio
I25: por asegurado por año póliza | M25: por persona
F26: Cirugías cardíacas y angioplastías | I26: 150000 | K26: Corazón | M26: 300000
I27: por asegurado por año póliza | K27: Corazón y Pulmón (simultáneamente) | M27: 300000
F28: Tratamiento de cáncer | I28: 200000 | K28: Pulmón | M28: 250000
I29: por asegurado por año póliza | K29: Pancreas | M29: 250000
F30: Trauma grave (Politraumatismos) | I30: 150000 | K30: Pancreas y Riñón (simultáneamente) | M30: 300000
I31: por asegurado por año póliza | K31: Riñón | M31: 200000
F32: Insuficiencia renal crónica (Diálisis) | I32: 100000 | K32: Hígado | M32: 200000
I33: por asegurado por año póliza | K33: Médula ósea | M33: 250000
F34: Quemaduras graves | I34: 300000 | K34: La cobertura de trasplante de órganos está limitada a la Red de Proveedores para Procedimiento de Trasplante de la Compañía y no se proporcionará cobertura en proveedores fuera de esta Red especializada.
I35: por asegurado por año póliza
F36: Desorden infeccioso grave (Septicemia) | I36: 150000
I37: por asegurado por año póliza
F39: Deducibles | H39: PLAN 1 | I39: PLAN 2 | J39: PLAN 3 | K39: PLAN 4 | L39: PLAN 5 | M39: PLAN 6
F40: Dentro del pais de residencia | H40: 2000 | I40: 3500 | J40: 5000 | K40: 10000 | L40: 20000 | M40: 50000
F41: Fuera del pais de residencia | H41: 2000 | I41: 3500 | J41: 5000 | K41: 10000 | L41: 20000 | M41: 50000
F43: Tarifas Anuales
F44: Prima por plan individual : | H44: =IF((($J$16+$J$18)=1),(VLOOKUP($M$20,Tablas!$A$543:$T$544,3,TRUE)),0) -> 0 | I44: =IF((($J$16+$J$18)=1),(VLOOKUP($M$20,Tablas!$A$543:$T$544,6,TRUE)),0) -> 0 | J44: =IF((($J$16+$J$18)=1),(VLOOKUP($M$20,Tablas!$A$543:$T$544,9,TRUE)),0) -> 0 | K44: =IF((($J$16+$J$18)=1),(VLOOKUP($M$20,Tablas!$A$543:$T$544,12,TRUE)),0) -> 0 | L44: =IF((($J$16+$J$18)=1),(VLOOKUP($M$20,Tablas!$A$543:$T$544,15,TRUE)),0) -> 0 | M44: =IF((($J$16+$J$18)=1),(VLOOKUP($M$20,Tablas!$A$543:$T$544,18,TRUE)),0) -> 0
F45: Prima por plan para 2 personas : | H45: =IF((($J$16+$J$18)=2),(VLOOKUP($M$20,Tablas!$A$543:$T$544,4,TRUE)),0) -> 0 | I45: =IF((($J$16+$J$18)=2),(VLOOKUP($M$20,Tablas!$A$543:$T$544,7,TRUE)),0) -> 0 | J45: =IF((($J$16+$J$18)=2),(VLOOKUP($M$20,Tablas!$A$543:$T$544,10,TRUE)),0) -> 0 | K45: =IF((($J$16+$J$18)=2),(VLOOKUP($M$20,Tablas!$A$543:$T$544,13,TRUE)),0) -> 0 | L45: =IF((($J$16+$J$18)=2),(VLOOKUP($M$20,Tablas!$A$543:$T$544,16,TRUE)),0) -> 0 | M45: =IF((($J$16+$J$18)=2),(VLOOKUP($M$20,Tablas!$A$543:$T$544,19,TRUE)),0) -> 0
F46: Prima por plan familiar : | H46: =IF((($J$16+$J$18)>=3),(VLOOKUP($M$20,Tablas!$A$543:$T$544,5,TRUE)),0) -> 10467 | I46: =IF((($J$16+$J$18)>=3),(VLOOKUP($M$20,Tablas!$A$543:$T$544,8,TRUE)),0) -> 8126 | J46: =IF((($J$16+$J$18)>=3),(VLOOKUP($M$20,Tablas!$A$543:$T$544,11,TRUE)),0) -> 6980 | K46: =IF((($J$16+$J$18)>=3),(VLOOKUP($M$20,Tablas!$A$543:$T$544,14,TRUE)),0) -> 5352 | L46: =IF((($J$16+$J$18)>=3),(VLOOKUP($M$20,Tablas!$A$543:$T$544,17,TRUE)),0) -> 3782 | M46: =IF((($J$16+$J$18)>=3),(VLOOKUP($M$20,Tablas!$A$543:$T$544,20,TRUE)),0) -> 2065
F47: TOTAL PRIMA NETA : | H47: =SUM(H44:H46) -> 10467 | I47: =SUM(I44:I46) -> 8126 | J47: 6980 | K47: 5352 | L47: 3782 | M47: 2065
F48: Costo Administrativo Anual : | H48: 75 | I48: 75 | J48: 75 | K48: 75 | L48: 75 | M48: 75
F49: GRAN TOTAL : | H49: =SUM(H47:H48) -> 10542 | I49: 8201 | J49: 7055 | K49: 5427 | L49: 3857 | M49: 2140
F50: Tarifas en US$ — Válidas desde 1ro. de enero de 2023
F53: Este presupuesto solamente tiene carácter informativo y en ningún momento expresa compromiso legal para suministrarle cobertura de seguro. La emisión de una póliza de seguro Bupa está sujeta a todas las evaluaciones de riesgo por parte de Bupa y a la recepción de todos los pagos de prima requeridos.

Sheet Resumen tarifas anuales
C12: Cotización de Seguro Médico Internacional - BUPA CARE
C14: =+'INGRESO DE DATOS'!$D$12 -> NOMBRE COMPLETO
C16: =+'INGRESO DE DATOS'!$D$21 -> NOMBRE DE LA AGENCIA/AGENTE
E18: =+'INGRESO DE DATOS'!$G$14 -> 2 | H18: =+'INGRESO DE DATOS'!$G$16 -> 74
A19: FECHA DE COTIZACION :
A20: =NOW() -> 2022-12-22T15:39:02.120 | E20: =+'INGRESO DE DATOS'!$J$14 -> 3 | H20: =+'INGRESO DE DATOS'!$J$16 -> 74
A22: Deducibles | C22: PLAN 1 | D22: PLAN 2 | E22: PLAN 3 | F22: PLAN 4 | G22: PLAN 5 | H22: PLAN 6
A23: Dentro del pais de residencia | C23: n/a | D23: 1000 | E23: 2000 | F23: 5000 | G23: 10000 | H23: 20000
A24: Fuera del pais de residencia | C24: n/a | D24: 2000 | E24: 3000 | F24: 5000 | G24: 10000 | H24: 20000
A26: PRODUCTOS | C26: Tarifas Anuales
A27: Bupa Exclusive Care | C27: n/a | D27: =+Exclusive!I36 -> 158178.93 | E27: =+Exclusive!J36 -> 109025.07 | F27: =+Exclusive!K36 -> 76367.06 | G27: =+Exclusive!L36 -> 66729.74 | H27: =+Exclusive!M36 -> 57659.84
A28: Bupa Privilege Care | C28: n/a | D28: =+Privilege!I35 -> 135818.76 | E28: =+Privilege!J35 -> 95136.51 | F28: =+Privilege!K35 -> 65923.69 | G28: =+Privilege!L35 -> 58119.95 | H28: =+Privilege!M35 -> 49531.23
A29: Bupa Advantage Care | C29: n/a | D29: =+'Advantage (Mundial)'!I38 -> 95632.24 | E29: =+'Advantage (Mundial)'!J38 -> 73778.22 | F29: =+'Advantage (Mundial)'!K38 -> 52205.63 | G29: =+'Advantage (Mundial)'!L38 -> 40639.97 | H29: =+'Advantage (Mundial)'!M38 -> 32596.16
A30: Bupa Secure Care | C30: n/a | D30: =+Secure!I38 -> 55369.94 | E30: =+Secure!J38 -> 49861.9 | F30: =+Secure!K38 -> 32887.9 | G30: =+Secure!L38 -> 26919.86 | H30: =+Secure!M38 -> 20049.3
A31: Bupa Essential Care | C31: n/a | D31: =+Essential!I38 -> 38943.73 | E31: =+Essential!J38 -> 35074.15 | F31: =+Essential!K38 -> 23146.78 | G31: =+Essential!L38 -> 18949.6 | H31: =+Essential!M38 -> 14115.94
A33: Deducibles | C33: PLAN 1 | D33: PLAN 2 | E33: PLAN 3 | F33: PLAN 4 | G33: PLAN 5 | H33: PLAN 6
A34: Dentro del pais de residencia | C34: 2000 | D34: 3500 | E34: 5000 | F34: 10000 | G34: 20000 | H34: 50000
A35: Fuera del pais de residencia | C35: 2000 | D35: 3500 | E35: 5000 | F35: 10000 | G35: 20000 | H35: 50000
C36: Tarifas Anuales
A37: Bupa Critical Care | C37: =+Critical!H49 -> 10542 | D37: =+Critical!I49 -> 8201 | E37: =+Critical!J49 -> 7055 | F37: =+Critical!K49 -> 5427 | G37: =+Critical!L49 -> 3857 | H37: =+Critical!M49 -> 2140
A38: Tarifas en US$ — Válidas desde 1ro. de enero de 2023
A40: Este presupuesto solamente tiene carácter informativo y en ningún momento expresa compromiso legal para suministrarle cobertura de seguro. La emisión de una póliza de seguro Bupa está sujeta a todas las evaluaciones de riesgo por parte de Bupa y a la recepción de todos los pagos de prima requeridos.

Sheet Comparacion de Beneficios
B2: 2023 BUPA CARE COMPARACION DE BENEFICIOS

Sheet Tablas (hidden)
A2: EXCLUSIVE | J2: FACTOR SEMESTRAL : | L2: 0.53
A3: TARIFAS ANUALES
A4: EDAD | I4: OK
D5: DW2 | E5: DW3 | F5: DW4 | G5: DW5 | H5: DW6 | J5: DW2 | K5: DW3 | L5: DW4 | M5: DW5 | N5: DW6 | O5: DW2 | P5: DW3 | Q5: DW4 | R5: DW5 | S5: DW6
A6: 18 | B6: - 24 | D6: =O6 -> 8501.03 | E6: =P6 -> 5625.71 | F6: 3761.26 | G6: 2628.38 | H6: 2074.19 | J6: 17297 | K6: 11429 | L6: 7624 | M6: 5312 | N6: 4181 | O6: =(J6-50)*0.49+50 -> 8501.03 | P6: =(K6-50)*0.49+50 -> 5625.71 | Q6: 3761.26 | R6: 2628.38 | S6: 2074.19
A7: 25 | B7: - 29 | D7: =O7 -> 8917.04 | E7: =P7 -> 6215.18 | F7: =Q7 -> 4165.02 | G7: =R7 -> 2912.09 | H7: =S7 -> 2294.2 | J7: 18146 | K7: 12632 | L7: 8448 | M7: 5891 | N7: 4630 | O7: =(J7-50)*0.49+50 -> 8917.04 | P7: =(K7-50)*0.49+50 -> 6215.18 | Q7: =(L7-50)*0.49+50 -> 4165.02 | R7: =(M7-50)*0.49+50 -> 2912.09 | S7: =(N7-50)*0.49+50 -> 2294.2
A8: 30 | B8: - 34 | D8: 9274.74 | E8: 6663.04 | F8: 4659.43 | G8: 3486.37 | H8: 2754.31 | J8: 18876 | K8: 13546 | L8: 9457 | M8: 7063 | N8: 5569 | O8: 9274.74 | P8: 6663.04 | Q8: 4659.43 | R8: 3486.37 | S8: 2754.31
A9: 35 | B9: - 39 | D9: 10384.59 | E9: 7456.35 | F9: 5221.46 | G9: 3904.34 | H9: 3081.14 | J9: 21141 | K9: 15165 | L9: 10604 | M9: 7916 | N9: 6236 | O9: 10384.59 | P9: 7456.35 | Q9: 5221.46 | R9: 3904.34 | S9: 3081.14
A10: 40 | B10: - 44 | D10: 12039.81 | E10: 8154.11 | F10: 5793.29 | G10: 4291.44 | H10: 3385.43 | J10: 24519 | K10: 16589 | L10: 11771 | M10: 8706 | N10: 6857 | O10: 12039.81 | P10: 8154.11 | Q10: 5793.29 | R10: 4291.44 | S10: 3385.43
A11: 45 | B11: - 49 | D11: 13456.89 | E11: 9116.96 | F11: 6471.94 | G11: 4790.75 | H11: 3781.84 | J11: 27411 | K11: 18554 | L11: 13156 | M11: 9725 | N11: 7666 | O11: 13456.89 | P11: 9116.96 | Q11: 6471.94 | R11: 4790.75 | S11: 3781.84
A12: 50 | B12: - 54 | D12: 17212.25 | E12: 11954.06 | F12: 8437.33 | G12: 6763 | H12: 5336.12 | J12: 35075 | K12: 24344 | L12: 17167 | M12: 13750 | N12: 10838 | O12: 17212.25 | P12: 11954.06 | Q12: 8437.33 | R12: 6763 | S12: 5336.12
A13: 55 | B13: - 59 | D13: 18311.81 | E13: 12719.44 | F13: 8972.9 | G13: 7193.22 | H13: 5678.63 | J13: 37319 | K13: 25906 | L13: 18260 | M13: 14628 | N13: 11537 | O13: 18311.81 | P13: 12719.44 | Q13: 8972.9 | R13: 7193.22 | S13: 5678.63
A14: 60 | D14: 19945.96 | E14: 13873.39 | F14: 10325.3 | G14: 8660.28 | H14: 7049.65 | J14: 40654 | K14: 28261 | L14: 21020 | M14: 17622 | N14: 14335 | O14: 19945.96 | P14: 13873.39 | Q14: 10325.3 | R14: 8660.28 | S14: 7049.65
A15: 61 | D15: 21426.74 | E15: 14906.8 | F15: 11086.27 | G15: 9309.53 | H15: 7572.48 | J15: 43676 | K15: 30370 | L15: 22573 | M15: 18947 | N15: 15402 | O15: 21426.74 | P15: 14906.8 | Q15: 11086.27 | R15: 9309.53 | S15: 7572.48
A16: 62 | D16: 23456.81 | E16: 16323.39 | F16: 12141.24 | G16: 10184.67 | H16: 8289.84 | J16: 47819 | K16: 33261 | L16: 24726 | M16: 20733 | N16: 16866 | O16: 23456.81 | P16: 16323.39 | Q16: 12141.24 | R16: 10184.67 | S16: 8289.84
A17: 63 | D17: 24940.04 | E17: 17354.84 | F17: 12902.21 | G17: 10834.9 | H17: 8810.22 | J17: 50846 | K17: 35366 | L17: 26279 | M17: 22060 | N17: 17928 | O17: 24940.04 | P17: 17354.84 | Q17: 12902.21 | R17: 10834.9 | S17: 8810.22
A18: 64 | D18: 26975.01 | E18: 18775.35 | F18: 13962.57 | G18: 11714.94 | H18: 9536.89 | J18: 54999 | K18: 38265 | L18: 28443 | M18: 23856 | N18: 19411 | O18: 26975.01 | P18: 18775.35 | Q18: 13962.57 | R18: 11714.94 | S18: 9536.89
A19: 65 | D19: 35258.46 | E19: 24483.85 | F19: 17646.88 | G19: 15617.79 | H19: 13437.78 | J19: 71904 | K19: 49915 | L19: 35962 | M19: 31821 | N19: 27372 | O19: 35258.46 | P19: 24483.85 | Q19: 17646.88 | R19: 15617.79 | S19: 13437.78
A20: 66 | D20: 40956.67 | E20: 28445.99 | F20: 20500.15 | G20: 18152.07 | H20: 15607.99 | J20: 83533 | K20: 58001 | L20: 41785 | M20: 36993 | N20: 31801 | O20: 40956.67 | P20: 28445.99 | Q20: 20500.15 | R20: 18152.07 | S20: 15607.99
A21: 67 | D21: 44735.55 | E21: 31066.51 | F21: 22390.08 | G21: 19818.56 | H21: 17048.59 | J21: 91245 | K21: 63349 | L21: 45642 | M21: 40394 | N21: 34741 | O21: 44735.55 | P21: 31066.51 | Q21: 22390.08 | R21: 19818.56 | S21: 17048.59
A22: 68 | D22: 49532.65 | E22: 34393.61 | F22: 24790.59 | G22: 21947.12 | H22: 18874.82 | J22: 101035 | K22: 70139 | L22: 50541 | M22: 44738 | N22: 38468 | O22: 49532.65 | P22: 34393.61 | Q22: 24790.59 | R22: 21947.12 | S22: 18874.82
A23: 69 | D23: 54496.84 | E23: 37837.33 | F23: 27274.89 | G23: 24142.81 | H23: 20768.18 | J23: 111166 | K23: 77167 | L23: 55611 | M23: 49219 | N23: 42332 | O23: 54496.84 | P23: 37837.33 | Q23: 27274.89 | R23: 24142.81 | S23: 20768.18
A24: 70 | D24: 67061.91 | E24: 46070.31 | F24: 32102.86 | G24: 28126.51 | H24: 24426.52 | J24: 136809 | K24: 93969 | L24: 65464 | M24: 57349 | N24: 49798 | O24: 67061.91 | P24: 46070.31 | Q24: 32102.86 | R24: 28126.51 | S24: 24426.52
A25: 71 | D25: 69697.62 | E25: 47876.45 | F25: 33365.1 | G25: 29234.4 | H25: 25384.96 | J25: 142188 | K25: 97655 | L25: 68040 | M25: 59610 | N25: 51754 | O25: 69697.62 | P25: 47876.45 | Q25: 33365.1 | R25: 29234.4 | S25: 25384.96
A26: 72 | D26: 71671.34 | E26: 49231.79 | F26: 34301.98 | G26: 30061.52 | H26: 26102.32 | J26: 146216 | K26: 100421 | L26: 69952 | M26: 61298 | N26: 53218 | O26: 71671.34 | P26: 49231.79 | Q26: 34301.98 | R26: 30061.52 | S26: 26102.32
A27: 73 | D27: 74301.66 | E27: 51042.34 | F27: 35563.24 | G27: 31166.96 | H27: 27055.37 | J27: 151584 | K27: 104116 | L27: 72526 | M27: 63554 | N27: 55163 | O27: 74301.66 | P27: 51042.34 | Q27: 35563.24 | R27: 31166.96 | S27: 27055.37
A28: 74 | D28: 75617.31 | E28: 51944.43 | F28: 36199.26 | G28: 31717.72 | H28: 27539 | J28: 154269 | K28: 105957 | L28: 73824 | M28: 64678 | N28: 56150 | O28: 75617.31 | P28: 51944.43 | Q28: 36199.26 | R28: 31717.72 | S28: 27539
A29: 75 | B29: o más | D29: 78907.66 | E29: 54202.84 | F29: 37767.26 | G29: 33098.05 | H29: 28740.97 | J29: 160984 | K29: 110566 | L29: 77024 | M29: 67495 | N29: 58603 | O29: 78907.66 | P29: 54202.84 | Q29: 37767.26 | R29: 33098.05 | S29: 28740.97
A30: 1 | B30: Hijo | D30: 2944.9 | E30: 2169.23 | F30: 1670.9 | G30: 1384.25 | H30: 1076.53 | J30: 6010 | K30: 4427 | L30: 3410 | M30: 2825 | N30: 2197 | O30: =(J30)*0.49 -> 2944.9 | P30: =(K30)*0.49 -> 2169.23 | Q30: 1670.9 | R30: 1384.25 | S30: 1076.53
A31: 2 | B31: Hijos | D31: 4684.4 | E31: 3455.48 | F31: 2659.23 | G31: 2196.67 | H31: 1713.04 | J31: 9560 | K31: 7052 | L31: 5427 | M31: 4483 | N31: 3496 | O31: =(J31)*0.49 -> 4684.4 | P31: =(K31)*0.49 -> 3455.48 | Q31: =(L31)*0.49 -> 2659.23 | R31: =(M31)*0.49 -> 2196.67 | S31: =(N31)*0.49 -> 1713.04
A32: 3 | B32: Hijos o más | D32: 6869.31 | E32: 5061.21 | F32: 3893.54 | G32: 3219.3 | H32: 2506.84 | J32: 14019 | K32: 10329 | L32: 7946 | M32: 6570 | N32: 5116 | O32: 6869.31 | P32: 5061.21 | Q32: 3893.54 | R32: 3219.3 | S32: 2506.84
A33: 1 | B33: Rider Comp. Maternidad | D33: 0 | E33: 0 | F33: 225 | G33: 225 | H33: 225
A34: 1 | B34: Transplante de organos | D34: 0 | E34: 0 | F34: 0 | G34: 0 | H34: 0
I35: OK
A36: TARIFAS SEMESTRALES
A37: EDAD
D38: DW2 | E38: DW3 | F38: DW4 | G38: DW5 | H38: DW6
A39: 18 | B39: - 24 | D39: =D6*$L$2 -> 4505.5459 | E39: =E6*$L$2 -> 2981.6263 | F39: 1993.4678 | G39: 1393.0414 | H39: 1099.3207
A40: 25 | B40: - 29 | D40: =D7*$L$2 -> 4726.0312 | E40: 3294.0454 | F40: 2207.4606 | G40: 1543.4077 | H40: 1215.926
A41: 30 | B41: - 34 | D41: =D8*$L$2 -> 4915.6122 | E41: 3531.4112 | F41: 2469.4979 | G41: 1847.7761 | H41: 1459.7843
A42: 35 | B42: - 39 | D42: =D9*$L$2 -> 5503.8327 | E42: 3951.8655 | F42: 2767.3738 | G42: 2069.3002 | H42: 1633.0042
A43: 40 | B43: - 44 | D43: =D10*$L$2 -> 6381.0993 | E43: 4321.6783 | F43: 3070.4437 | G43: 2274.4632 | H43: 1794.2779
A44: 45 | B44: - 49 | D44: =D11*$L$2 -> 7132.1517 | E44: 4831.9888 | F44: 3430.1282 | G44: 2539.0975 | H44: 2004.3752
A45: 50 | B45: - 54 | D45: =D12*$L$2 -> 9122.4925 | E45: 6335.6518 | F45: 4471.7849 | G45: 3584.39 | H45: 2828.1436
A46: 55 | B46: - 59 | D46: =D13*$L$2 -> 9705.2593 | E46: 6741.3032 | F46: 4755.637 | G46: 3812.4066 | H46: 3009.6739
A47: 60 | D47: =D14*$L$2 -> 10571.3588 | E47: 7352.8967 | F47: 5472.409 | G47: 4589.9484 | H47: 3736.3145
A48: 61 | D48: =D15*$L$2 -> 11356.1722 | E48: 7900.604 | F48: 5875.7231 | G48: 4934.0509 | H48: 4013.4144
A49: 62 | D49: =D16*$L$2 -> 12432.1093 | E49: 8651.3967 | F49: 6434.8572 | G49: 5397.8751 | H49: 4393.6152
A50: 63 | D50: =D17*$L$2 -> 13218.2212 | E50: 9198.0652 | F50: 6838.1713 | G50: 5742.497 | H50: 4669.4166
A51: 64 | D51: =D18*$L$2 -> 14296.7553 | E51: 9950.9355 | F51: 7400.1621 | G51: 6208.9182 | H51: 5054.5517
A52: 65 | D52: =D19*$L$2 -> 18686.9838 | E52: 12976.4405 | F52: 9352.8464 | G52: 8277.4287 | H52: 7122.0234
A53: 66 | D53: =D20*$L$2 -> 21707.0351 | E53: 15076.3747 | F53: 10865.0795 | G53: 9620.5971 | H53: 8272.2347
A54: 67 | D54: =D21*$L$2 -> 23709.8415 | E54: 16465.2503 | F54: 11866.7424 | G54: 10503.8368 | H54: 9035.7527
A55: 68 | D55: =D22*$L$2 -> 26252.3045 | E55: 18228.6133 | F55: 13139.0127 | G55: 11631.9736 | H55: 10003.6546
A56: 69 | D56: =D23*$L$2 -> 28883.3252 | E56: 20053.7849 | F56: 14455.6917 | G56: 12795.6893 | H56: 11007.1354
A57: 70 | D57: =D24*$L$2 -> 35542.8123 | E57: 24417.2643 | F57: 17014.5158 | G57: 14907.0503 | H57: 12946.0556
A58: 71 | D58: =D25*$L$2 -> 36939.7386 | E58: 25374.5185 | F58: 17683.503 | G58: 15494.232 | H58: 13454.0288
A59: 72 | D59: =D26*$L$2 -> 37985.8102 | E59: 26092.8487 | F59: 18180.0494 | G59: 15932.6056 | H59: 13834.2296
A60: 73 | D60: =D27*$L$2 -> 39379.8798 | E60: 27052.4402 | F60: 18848.5172 | G60: 16518.4888 | H60: 14339.3461
A61: 74 | D61: =D28*$L$2 -> 40077.1743 | E61: 27530.5479 | F61: 19185.6078 | G61: 16810.3916 | H61: 14595.67
A62: 75 | B62: o más | D62: =D29*$L$2 -> 41821.0598 | E62: 28727.5052 | F62: 20016.6478 | G62: 17541.9665 | H62: 15232.7141
A63: 1 | B63: Hijo | D63: =D30*$L$2 -> 1560.797 | E63: 1149.6919 | F63: 885.577 | G63: 733.6525 | H63: 570.5609
A64: 2 | B64: Hijos | D64: =D31*$L$2 -> 2482.732 | E64: 1831.4044 | F64: 1409.3919 | G64: 1164.2351 | H64: 907.9112
A65: 3 | B65: Hijos o más | D65: =D32*$L$2 -> 3640.7343 | E65: 2682.4413 | F65: 2063.5762 | G65: 1706.229 | H65: 1328.6252
A66: 1 | B66: Rider Comp. Maternidad | D66: =+D33*$L$2 -> 0 | E66: 0 | F66: 119.25 | G66: 119.25 | H66: 119.25
A67: 1 | B67: Transplante de organos | D67: 0 | E67: 0 | F67: 0 | G67: 0 | H67: 0
A69: DIAMOND (LATINAMERICA ONLY)
A70: TARIFAS ANUALES
A71: EDAD
A73: 18 | B73: - 24
A74: 25 | B74: - 29
A75: 30 | B75: - 34
A76: 35 | B76: - 39
A77: 40 | B77: - 44
A78: 45 | B78: - 49
A79: 50 | B79: - 54
A80: 55 | B80: - 59
A81: 60
A82: 61
A83: 62
A84: 63
A85: 64
A86: 65
A87: 66
A88: 67
A89: 68
A90: 69
A91: 70
A92: 71
A93: 72
A94: 73
A95: 74
A96: 75 | B96: o más
A97: 1 | B97: Hijo
A98: 2 | B98: Hijos
A99: 3 | B99: Hijos o más
A100: 1 | B100: Rider Comp. Maternidad
A101: 1 | B101: Transplante de organos
A103: TARIFAS SEMESTRALES
A104: EDAD
A106: 18 | B106: - 24
A107: 25 | B107: - 29
A108: 30 | B108: - 34
A109: 35 | B109: - 39
A110: 40 | B110: - 44
A111: 45 | B111: - 49
A112: 50 | B112: - 54
A113: 55 | B113: - 59
A114: 60
A115: 61
A116: 62
A117: 63
A118: 64
A119: 65
A120: 66
A121: 67
A122: 68
A123: 69
A124: 70
A125: 71
A126: 72
A127: 73
A128: 74
A129: 75 | B129: o más
A130: 1 | B130: Hijo
A131: 2 | B131: Hijos
A132: 3 | B132: Hijos o más
A133: 1 | B133: Rider Comp. Maternidad
A134: 1 | B134: Transplante de organos
A136: PRIVILEGE
A137: TARIFAS ANUALES | I137: OK
A138: EDAD
D139: CW2 | E139: CW3 | F139: CW4 | G139: CW5 | H139: CW6 | J139: CW2 | K139: CW3 | L139: CW4 | M139: CW5 | N139: CW6 | O139: CW2 | P139: CW3 | Q139: CW4 | R139: CW5 | S139: CW6
A140: 18 | B140: - 24 | D140: =O140 -> 7155.49 | E140: =P140 -> 4926.48 | F140: 3273.22 | G140: 2289.79 | H140: 1747.36 | J140: 14551 | K140: 10002 | L140: 6628 | M140: 4621 | N140: 3514 | O140: =(J140-50)*0.49+50 -> 7155.49 | P140: =(K140-50)*0.49+50 -> 4926.48 | Q140: 3273.22 | R140: 2289.79 | S140: 1747.36
A141: 25 | B141: - 29 | D141: =O141 -> 7503.88 | E141: =P141 -> 5447.84 | F141: =Q141 -> 3622.1 | G141: =R141 -> 2531.85 | H141: =S141 -> 1933.56 | J141: 15262 | K141: 11066 | L141: 7340 | M141: 5115 | N141: 3894 | O141: =(J141-50)*0.49+50 -> 7503.88 | P141: =(K141-50)*0.49+50 -> 5447.84 | Q141: =(L141-50)*0.49+50 -> 3622.1 | R141: =(M141-50)*0.49+50 -> 2531.85 | S141: =(N141-50)*0.49+50 -> 1933.56
A142: 30 | B142: - 34 | D142: 7838.55 | E142: 5825.14 | F142: 4062.12 | G142: 3054.19 | H142: 2342.71 | J142: 15945 | K142: 11836 | L142: 8238 | M142: 6181 | N142: 4729 | O142: 7838.55 | P142: 5825.14 | Q142: 4062.12 | R142: 3054.19 | S142: 2342.71
A143: 35 | B143: - 39 | D143: 8771.51 | E143: 6518 | F143: 4549.18 | G143: 3422.67 | H143: 2619.56 | J143: 17849 | K143: 13250 | L143: 9232 | M143: 6933 | N143: 5294 | O143: 8771.51 | P143: 6518 | Q143: 4549.18 | R143: 3422.67 | S143: 2619.56
A144: 40 | B144: - 44 | D144: 10151.35 | E144: 7146.18 | F144: 5054.37 | G144: 3772.04 | H144: 2889.06 | J144: 20665 | K144: 14532 | L144: 10263 | M144: 7646 | N144: 5844 | O144: 10151.35 | P144: 7146.18 | Q144: 5054.37 | R144: 3772.04 | S144: 2889.06
A145: 45 | B145: - 49 | D145: 11338.62 | E145: 7982.12 | F145: 5643.84 | G145: 4213.53 | H145: 3223.73 | J145: 23088 | K145: 16238 | L145: 11466 | M145: 8547 | N145: 6527 | O145: 11338.62 | P145: 7982.12 | Q145: 5643.84 | R145: 4213.53 | S145: 3223.73
A146: 50 | B146: - 54 | D146: 14812.23 | E146: 10520.81 | F146: 7402.94 | G146: 5996.15 | H146: 4591.81 | J146: 30177 | K146: 21419 | L146: 15056 | M146: 12185 | N146: 9319 | O146: 14812.23 | P146: 10520.81 | Q146: 7402.94 | R146: 5996.15 | S146: 4591.81
A147: 55 | B147: - 59 | D147: 15754.99 | E147: 11189.66 | F147: 7875.79 | G147: 6381.78 | H147: 4883.85 | J147: 32101 | K147: 22784 | L147: 16021 | M147: 12972 | N147: 9915 | O147: 15754.99 | P147: 11189.66 | Q147: 7875.79 | R147: 6381.78 | S147: 4883.85
A148: 60 | D148: 17155.41 | E148: 12146.63 | F148: 8959.67 | G148: 7583.26 | H148: 6101.5 | J148: 34959 | K148: 24737 | L148: 18233 | M148: 15424 | N148: 12400 | O148: 17155.41 | P148: 12146.63 | Q148: 8959.67 | R148: 7583.26 | S148: 6101.5
A149: 61 | D149: 18428.43 | E149: 13046.76 | F149: 9623.13 | G149: 8148.72 | H149: 6550.34 | J149: 37557 | K149: 26574 | L149: 19587 | M149: 16578 | N149: 13316 | O149: 18428.43 | P149: 13046.76 | Q149: 9623.13 | R149: 8148.72 | S149: 6550.34
A150: 62 | D150: 20169.89 | E150: 14287.44 | F150: 10535.51 | G150: 8919.49 | H150: 7170.19 | J150: 41111 | K150: 29106 | L150: 21449 | M150: 18151 | N150: 14581 | O150: 20169.89 | P150: 14287.44 | Q150: 10535.51 | R150: 8919.49 | S150: 7170.19
A151: 63 | D151: 21447.32 | E151: 15187.57 | F151: 11198.97 | G151: 9486.42 | H151: 7620.5 | J151: 43718 | K151: 30943 | L151: 22803 | M151: 19308 | N151: 15500 | O151: 21447.32 | P151: 15187.57 | Q151: 11198.97 | R151: 9486.42 | S151: 7620.5
A152: 64 | D152: 23193.68 | E152: 16431.68 | F152: 12115.27 | G152: 10259.64 | H152: 8244.27 | J152: 47282 | K152: 33482 | L152: 24673 | M152: 20886 | N152: 16773 | O152: 23193.68 | P152: 16431.68 | Q152: 12115.27 | R152: 10259.64 | S152: 8244.27
A153: 65 | D153: 30317.3 | E153: 21420.37 | F153: 15309.09 | G153: 13669.55 | H153: 11612.04 | J153: 61820 | K153: 43663 | L153: 31191 | M153: 27845 | N153: 23646 | O153: 30317.3 | P153: 21420.37 | Q153: 15309.09 | R153: 13669.55 | S153: 11612.04
A154: 66 | D154: 35212.89 | E154: 24885.16 | F154: 17784.08 | G154: 15883.37 | H154: 13487.76 | J154: 71811 | K154: 50734 | L154: 36242 | M154: 32363 | N154: 27474 | O154: 35212.89 | P154: 24885.16 | Q154: 17784.08 | R154: 15883.37 | S154: 13487.76
A155: 67 | D155: 38454.73 | E155: 27175.91 | F155: 19421.66 | G155: 17338.18 | H155: 14729.91 | J155: 78427 | K155: 55409 | L155: 39584 | M155: 35332 | N155: 30009 | O155: 38454.73 | P155: 27175.91 | Q155: 19421.66 | R155: 17338.18 | S155: 14729.91
A156: 68 | D156: 42579.06 | E156: 30085.04 | F156: 21505.14 | G156: 19199.2 | H156: 16307.71 | J156: 86844 | K156: 61346 | L156: 43836 | M156: 39130 | N156: 33229 | O156: 42579.06 | P156: 30085.04 | Q156: 21505.14 | R156: 19199.2 | S156: 16307.71
A157: 69 | D157: 46841.57 | E157: 33096.09 | F157: 23652.81 | G157: 21118.53 | H157: 17942.35 | J157: 95543 | K157: 67491 | L157: 48219 | M157: 43047 | N157: 36565 | O157: 46841.57 | P157: 33096.09 | Q157: 23652.81 | R157: 21118.53 | S157: 17942.35
A158: 70 | D158: 57643.13 | E158: 40295.17 | F158: 27839.37 | G158: 24610.27 | H158: 21093.54 | J158: 117587 | K158: 82183 | L158: 56763 | M158: 50173 | N158: 42996 | O158: 57643.13 | P158: 40295.17 | Q158: 27839.37 | R158: 24610.27 | S158: 21093.54
A159: 71 | D159: 59905.95 | E159: 41870.52 | F159: 28927.66 | G159: 25572.63 | H159: 21926.05 | J159: 122205 | K159: 85398 | L159: 58984 | M159: 52137 | N159: 44695 | O159: 59905.95 | P159: 41870.52 | Q159: 28927.66 | R159: 25572.63 | S159: 21926.05
A160: 72 | D160: 61603.31 | E160: 43054.36 | F160: 29749.88 | G160: 26295.87 | H160: 22542.96 | J160: 125669 | K160: 87814 | L160: 60662 | M160: 53613 | N160: 45954 | O160: 61603.31 | P160: 43054.36 | Q160: 29749.88 | R160: 26295.87 | S160: 22542.96
A161: 73 | D161: 63861.23 | E161: 44638.53 | F161: 30839.15 | G161: 27262.15 | H161: 23376.94 | J161: 130277 | K161: 91047 | L161: 62885 | M161: 55585 | N161: 47656 | O161: 63861.23 | P161: 44638.53 | Q161: 30839.15 | R161: 27262.15 | S161: 23376.94
A162: 74 | D162: 64991.17 | E162: 45425.47 | F162: 31385.01 | G162: 27747.74 | H162: 23784.13 | J162: 132583 | K162: 92653 | L162: 63999 | M162: 56576 | N162: 48487 | O162: 64991.17 | P162: 45425.47 | Q162: 31385.01 | R162: 27747.74 | S162: 23784.13
A163: 75 | B163: o más | D163: 67820.43 | E163: 47403.6 | F163: 32749.17 | G163: 28951.67 | H163: 24818.52 | J163: 138357 | K163: 96690 | L163: 66783 | M163: 59033 | N163: 50598 | O163: 67820.43 | P163: 47403.6 | Q163: 32749.17 | R163: 28951.67 | S163: 24818.52
A164: 1 | B164: Hijo | D164: 2471.56 | E164: 1803.2 | F164: 1319.08 | G164: 1092.7 | H164: 810.46 | J164: 5044 | K164: 3680 | L164: 2692 | M164: 2230 | N164: 1654 | O164: =(J164)*0.49 -> 2471.56 | P164: =(K164)*0.49 -> 1803.2 | Q164: 1319.08 | R164: 1092.7 | S164: 810.46
A165: 2 | B165: Hijos | D165: 3927.84 | E165: 2873.85 | F165: 2103.08 | G165: 1739.99 | H165: 1287.72 | J165: 8016 | K165: 5865 | L165: 4292 | M165: 3551 | N165: 2628 | O165: =(J165)*0.49 -> 3927.84 | P165: =(K165)*0.49 -> 2873.85 | Q165: =(L165)*0.49 -> 2103.08 | R165: =(M165)*0.49 -> 1739.99 | S165: =(N165)*0.49 -> 1287.72
A166: 3 | B166: Hijos o más | D166: 5761.42 | E166: 4210.57 | F166: 3078.67 | G166: 2549.47 | H166: 1887.97 | J166: 11758 | K166: 8593 | L166: 6283 | M166: 5203 | N166: 3853 | O166: 5761.42 | P166: 4210.57 | Q166: 3078.67 | R166: 2549.47 | S166: 1887.97
A167: 1 | B167: Rider Comp. Maternidad | D167: 0 | E167: 0 | F167: 225 | G167: 225 | H167: 225
A168: 1 | B168: Transplante de organos | D168: 0 | E168: 0 | F168: 0 | G168: 0 | H168: 0
A170: TARIFAS SEMESTRALES
A171: EDAD | I171: OK
D172: CW2 | E172: CW3 | F172: CW4 | G172: CW5 | H172: CW6
A173: 18 | B173: - 24 | D173: =D140*$L$2 -> 3792.4097 | E173: =E140*$L$2 -> 2611.0344 | F173: 1734.8066 | G173: 1213.5887 | H173: 926.1008
A174: 25 | B174: - 29 | D174: =D141*$L$2 -> 3977.0564 | E174: 2887.3552 | F174: 1919.713 | G174: 1341.8805 | H174: 1024.7868
A175: 30 | B175: - 34 | D175: =D142*$L$2 -> 4154.4315 | E175: 3087.3242 | F175: 2152.9236 | G175: 1618.7207 | H175: 1241.6363
A176: 35 | B176: - 39 | D176: =D143*$L$2 -> 4648.9003 | E176: 3454.54 | F176: 2411.0654 | G176: 1814.0151 | H176: 1388.3668
A177: 40 | B177: - 44 | D177: =D144*$L$2 -> 5380.2155 | E177: 3787.4754 | F177: 2678.8161 | G177: 1999.1812 | H177: 1531.2018
A178: 45 | B178: - 49 | D178: =D145*$L$2 -> 6009.4686 | E178: 4230.5236 | F178: 2991.2352 | G178: 2233.1709 | H178: 1708.5769
A179: 50 | B179: - 54 | D179: =D146*$L$2 -> 7850.4819 | E179: 5576.0293 | F179: 3923.5582 | G179: 3177.9595 | H179: 2433.6593
A180: 55 | B180: - 59 | D180: =D147*$L$2 -> 8350.1447 | E180: 5930.5198 | F180: 4174.1687 | G180: 3382.3434 | H180: 2588.4405
A181: 60 | D181: =D148*$L$2 -> 9092.3673 | E181: 6437.7139 | F181: 4748.6251 | G181: 4019.1278 | H181: 3233.795
A182: 61 | D182: =D149*$L$2 -> 9767.0679 | E182: 6914.7828 | F182: 5100.2589 | G182: 4318.8216 | H182: 3471.6802
A183: 62 | D183: =D150*$L$2 -> 10690.0417 | E183: 7572.3432 | F183: 5583.8203 | G183: 4727.3297 | H183: 3800.2007
A184: 63 | D184: =D151*$L$2 -> 11367.0796 | E184: 8049.4121 | F184: 5935.4541 | G184: 5027.8026 | H184: 4038.865
A185: 64 | D185: =D152*$L$2 -> 12292.6504 | E185: 8708.7904 | F185: 6421.0931 | G185: 5437.6092 | H185: 4369.4631
A186: 65 | D186: =D153*$L$2 -> 16068.169 | E186: 11352.7961 | F186: 8113.8177 | G186: 7244.8615 | H186: 6154.3812
A187: 66 | D187: =D154*$L$2 -> 18662.8317 | E187: 13189.1348 | F187: 9425.5624 | G187: 8418.1861 | H187: 7148.5128
A188: 67 | D188: =D155*$L$2 -> 20381.0069 | E188: 14403.2323 | F188: 10293.4798 | G188: 9189.2354 | H188: 7806.8523
A189: 68 | D189: =D156*$L$2 -> 22566.9018 | E189: 15945.0712 | F189: 11397.7242 | G189: 10175.576 | H189: 8643.0863
A190: 69 | D190: =D157*$L$2 -> 24826.0321 | E190: 17540.9277 | F190: 12535.9893 | G190: 11192.8209 | H190: 9509.4455
A191: 70 | D191: =D158*$L$2 -> 30550.8589 | E191: 21356.4401 | F191: 14754.8661 | G191: 13043.4431 | H191: 11179.5762
A192: 71 | D192: =D159*$L$2 -> 31750.1535 | E192: 22191.3756 | F192: 15331.6598 | G192: 13553.4939 | H192: 11620.8065
A193: 72 | D193: =D160*$L$2 -> 32649.7543 | E193: 22818.8108 | F193: 15767.4364 | G193: 13936.8111 | H193: 11947.7688
A194: 73 | D194: =D161*$L$2 -> 33846.4519 | E194: 23658.4209 | F194: 16344.7495 | G194: 14448.9395 | H194: 12389.7782
A195: 74 | D195: =D162*$L$2 -> 34445.3201 | E195: 24075.4991 | F195: 16634.0553 | G195: 14706.3022 | H195: 12605.5889
A196: 75 | B196: o más | D196: =D163*$L$2 -> 35944.8279 | E196: 25123.908 | F196: 17357.0601 | G196: 15344.3851 | H196: 13153.8156
A197: 1 | B197: Hijo | D197: =D164*$L$2 -> 1309.9268 | E197: 955.696 | F197: 699.1124 | G197: 579.131 | H197: 429.5438
A198: 2 | B198: Hijos | D198: =D165*$L$2 -> 2081.7552 | E198: 1523.1405 | F198: 1114.6324 | G198: 922.1947 | H198: 682.4916
A199: 3 | B199: Hijos o más | D199: =D166*$L$2 -> 3053.5526 | E199: 2231.6021 | F199: 1631.6951 | G199: 1351.2191 | H199: 1000.6241
A200: 1 | B200: Rider Comp. Maternidad | D200: =+D167*$L$2 -> 0 | E200: 0 | F200: 119.25 | G200: 119.25 | H200: 119.25
A201: 1 | B201: Transplante de organos | D201: 0 | E201: 0 | F201: 0 | G201: 0 | H201: 0
A203: COMPLETE (LATINAMERICA ONLY)
A204: TARIFAS ANUALES
A205: EDAD
A207: 18 | B207: - 24
A208: 25 | B208: - 29
A209: 30 | B209: - 34
... 334 more rows
